Workbook

Sheet 4analytics.ru
E1: Коэффициент сезонности для 1-го года | F1: 1
A2: www.4analytics.ru | D2: k= | E2: B= | F2: q=
D3: 0.8 | E3: 0.83 | F3: 0.65
A4: Год | B4: Месяц | C4: Total Production of Crude Steel | D4: Lt = экспоненциально сглаженный ряд | E4: Tt = значение тренда | F4: St-s — коэффициент сезонности предыдущего периода; | G4: p - номер периода для прогноза | H4: Прогноз по методу Хольта Ŷt+p = Lt + p *Tt | I4: Проноз для оценки модели | J4: Ошибка модели | K4: Отклонение ошибки модели от прогнозной модели | L4: Точность прогноза
A5: 2000 | B5: 1 | C5: 67.575 | D5: =C5 -> 67.575 | F5: 1 | I5: =D5+E5 -> 67.575 | J5: =C5-I5 -> 0 | K5: =(J5^2)/(C5^2) -> 0 | L5: =1-AVERAGE(K5:K54) -> 0.9995796161
B6: 2 | C6: 65.668 | D6: =$D$3*C6/F1+(1-$D$3)*(D5+E5) -> 66.0494 | E6: =$E$3*(D6-D5)+(1-$E$3)*E5 -> -1.266248 | F6: 1 | I6: =D6+E6 -> 64.783152 | J6: =C6-I6 -> 0.884848 | K6: =(J6^2)/(C6^2) -> 0.0001815640109
B7: 3 | C7: 70.869 | D7: =$D$3*C7/F1+(1-$D$3)*(D6+E6) -> 69.6518304 | E7: =$E$3*(D7-D6)+(1-$E$3)*E6 -> 2.774755072 | F7: 1 | I7: 72.42658547 | J7: =C7-I7 -> -1.557585472 | K7: =(J7^2)/(C7^2) -> 0.0004830489764
B8: 4 | C8: 69.303 | D8: =$D$3*C8/F1+(1-$D$3)*(D7+E7) -> 69.92771709 | E8: =$E$3*(D8-D7)+(1-$E$3)*E7 -> 0.7006943186 | F8: 1 | I8: 70.62841141 | J8: =C8-I8 -> -1.325411413 | K8: 0.0003657609546
B9: 5 | C9: 72.313 | D9: =$D$3*C9/F1+(1-$D$3)*(D8+E8) -> 71.97608228 | E9: =$E$3*(D9-D8)+(1-$E$3)*E8 -> 1.81926114 | F9: 1 | I9: 73.79534342 | J9: -1.482343423 | K9: 0.0004202085678
B10: 6 | C10: 69.313 | D10: =$D$3*C10/F1+(1-$D$3)*(D9+E9) -> 70.20946868 | E10: =$E$3*(D10-D9)+(1-$E$3)*E9 -> -1.157014892 | F10: 1 | I10: 69.05245379 | J10: 0.2605462079 | K10: 1.412993359e-05
B11: 7 | C11: 70.625 | D11: =$D$3*C11/F1+(1-$D$3)*(D10+E10) -> 70.31049076 | E11: -0.1128442104 | F11: 1 | I11: 70.19764655 | J11: 0.427353452 | K11: 3.661487123e-05
B12: 8 | C12: 67.826 | D12: =$D$3*C12/F1+(1-$D$3)*(D11+E11) -> 68.30032931 | E12: -1.687617518 | F12: 1 | I12: 66.61271179 | J12: 1.213288209 | K12: 0.0003199893637
B13: 9 | C13: 68.425 | D13: =$D$3*C13/F1+(1-$D$3)*(D12+E12) -> 68.06254236 | E13: -0.4842581477 | F13: 1 | I13: 67.57828421 | J13: 0.8467157895 | K13: 0.0001531248601
B14: 10 | C14: 71.027 | D14: =$D$3*C14/F1+(1-$D$3)*(D13+E13) -> 70.33725684 | E14: 1.805689136 | F14: 1 | I14: 72.14294598 | J14: -1.115945979 | K14: 0.0002468535629
B15: 11 | C15: 68.471 | D15: =$D$3*C15/F1+(1-$D$3)*(D14+E14) -> 69.2053892 | E15: -0.6324829933 | F15: 1 | I15: 68.5729062 | J15: -0.1019062024 | K15: 2.215072238e-06
B16: 12 | C16: 68.086 | D16: =$D$3*C16/F1+(1-$D$3)*(D15+E15) -> 68.18338124 | E16: -0.9557887117 | F16: 1 | I16: 67.22759253 | J16: 0.8584074712 | K16: 0.0001589539545
A17: 2001 | B17: 1 | C17: 69.039 | D17: =$D$3*C17/F5+(1-$D$3)*(D16+E16) -> 68.67671851 | E17: 0.2469858492 | F17: =$F$3*(C17/D17)+(1-$F$3)*F5 -> 1.003428862 | I17: 68.92370435 | J17: 0.1152956451 | K17: 2.788924918e-06
B18: 2 | C18: 64.406 | D18: =$D$3*C18/F14+(1-$D$3)*(D17+E17) -> 65.30954087 | E18: -2.752769842 | F18: =$F$3*(C18/D18)+(1-$F$3)*F6 -> 0.9910074155 | I18: 62.55677103 | J18: 1.849228972 | K18: 0.0008243824208
B19: 3 | C19: 71.348 | D19: 69.58975421 | E19: 3.084606195 | F19: 1.016422817 | I19: 72.6743604 | J19: -1.3263604 | K19: 0.0003455886629
B20: 4 | C20: 70.329 | D20: 70.79807208 | E20: 1.527286889 | F20: 0.99569343 | I20: 72.32535897 | J20: -1.996358969 | K20: 0.0008057649757
B21: 5 | C21: 70.775 | D21: 70.89159305 | E21: 0.3372611802 | F21: 0.9989309665 | I21: 71.22885424 | J21: -0.4538542352 | K21: 4.112188638e-05
B22: 6 | C22: 70.034 | D22: 70.78137202 | E22: -0.03414905929 | F22: 0.9931367279 | I22: 70.74722296 | J22: -0.7132229596 | K22: 0.0001037128973
B23: 7 | C23: 68.858 | D23: 68.34578799 | E23: -2.027340086 | F23: 1.004871373 | I23: 66.3184479 | J23: 2.539552099 | K23: 0.001360208376
B24: 8 | C24: 67.685 | D24: 67.64589033 | E24: -0.9255628673 | F24: 1.000375799 | I24: 66.72032747 | J24: 0.9646725337 | K24: 0.0002031304171
B25: 9 | C25: 69.427 | D25: 68.94510487 | E25: 0.9210023739 | F25: 1.004543206 | I25: 69.86610724 | J25: -0.4391072392 | K25: 4.000224775e-05
B26: 10 | C26: 70.523 | D26: 70.7815122 | E26: 1.680788493 | F26: 0.9976260336 | I26: 72.4623007 | J26: -1.939300695 | K26: 0.0007561862027
B27: 11 | C27: 67.48 | D27: 68.2147588 | E27: -1.844671282 | F27: 0.992998682 | I27: 66.37008752 | J27: 1.109912484 | K27: 0.0002705374077
B28: 12 | C28: 67.831 | D28: 67.51843249 | E28: -0.8915449567 | F28: 1.003009088 | I28: 66.62688753 | J28: 1.204112471 | K28: 0.0003151212344
A29: 2002 | B29: 1 | C29: 69.243 | D29: =$D$3*C29/F25+(1-$D$3)*(D28+E28) -> 68.46924753 | E29: =$E$3*(D29-D28)+(1-$E$3)*E28 -> 0.6376138404 | F29: 1.008545576 | I29: 69.10686137 | J29: 0.1361386336 | K29: 3.865547578e-06
B30: 2 | C30: 66.314 | D30: 66.99881373 | E30: -1.112065696 | F30: 0.9902087625 | I30: 65.88674804 | J30: 0.4272519637 | K30: 4.151047328e-05
B31: 3 | C31: 73.833 | D31: 72.66020801 | E31: 4.509906086 | F31: 1.016239489 | I31: 77.1701141 | J31: -3.337114101 | K31: 0.002042871651
B32: 4 | C32: 72.14 | D32: 72.97288334 | E32: 1.026204557 | F32: 0.9910738601 | I32: 73.9990879 | J32: -1.859087901 | K32: 0.00066412155
B33: 5 | C33: 75.667 | D33: 74.82050622 | E33: 1.707981763 | F33: 1.006979717 | I33: 76.52848798 | J33: -0.8614879839 | K33: 0.0001296239995
B34: 6 | C34: 74.461 | D34: 75.4635171 | E34: 0.8240559266 | F34: 0.9889627403 | I34: 76.28757302 | J34: -1.826573023 | K34: 0.0006017503473
B35: 7 | C35: 74.468 | D35: 73.87991676 | E35: -1.17429877 | F35: 1.006878973 | I35: 72.70561799 | J35: 1.762382008 | K35: 0.0005600937429
B36: 8 | C36: 74.592 | D36: 74.75217587 | E36: 0.5243442708 | F36: 0.9987387366 | I36: 75.27652014 | J36: -0.6845201433 | K36: 8.421471079e-05
B37: 9 | C37: 75.549 | D37: 75.07557947 | E37: 0.3575635112 | F37: 1.00568897 | I37: 75.43314298 | J37: 0.1158570197 | K37: 2.351728948e-06
B38: 10 | C38: 77.52 | D38: 77.79475447 | E38: 2.317701047 | F38: 0.9968734505 | I38: 80.11245552 | J38: -2.592455517 | K38: 0.001118394695
B39: 11 | C39: 76.281 | D39: 76.63037116 | E39: -0.5724289685 | F39: 0.9945860759 | I39: 76.05794219 | J39: 0.2230578081 | K39: 8.550708574e-06
B40: 12 | C40: 75.598 | D40: 75.76636396 | E40: -0.8144389031 | F40: 0.9996087855 | I40: 74.95192505 | J40: 0.6460749456 | K40: 7.303738025e-05
A41: 2003 | B41: 1 | C41: 75.552 | D41: 75.09007967 | E41: -0.6997705699 | F41: 1.006989459 | I41: 74.3903091 | J41: 1.161690897 | K41: 0.0002364227376
B42: 2 | C42: 71.085 | D42: 71.92442008 | E42: -2.746458455 | F42: 0.9889870056 | I42: 69.17796163 | J42: 1.907038371 | K42: 0.0007197189331
B43: 3 | C43: 81.324 | D43: 79.2489352 | E43: 5.612449608 | F43: 1.022703509 | I43: 84.86138481 | J43: -3.537384807 | K43: 0.001892026213
B44: 4 | C44: 78.513 | D44: 79.80725892 | E44: 1.41752512 | F44: 0.9863346007 | I44: 81.22478404 | J44: -2.711784038 | K44: 0.001192963224
B45: 5 | C45: 81.249 | D45: 80.79300092 | E45: 1.059145133 | F45: 1.006111528 | I45: 81.85214605 | J45: -0.6031460546 | K45: 5.510727469e-05
B46: 6 | C46: 79.181 | D46: 80.42061353 | E46: -0.1290268623 | F46: 0.9861177767 | I46: 80.29158667 | J46: -1.110586668 | K46: 0.0001967265367
B47: 7 | C47: 78.704 | D47: 77.62376564 | E47: -2.343318313 | F47: 1.011453225 | I47: 75.28044733 | J47: 3.42355267 | K47: 0.001892171152
B48: 8 | C48: 78.097 | D48: 78.39929973 | E48: 0.2453291774 | F48: 0.9970522239 | I48: 78.64462891 | J48: -0.5476289054 | K48: 4.917043202e-05
B49: 9 | C49: 79.121 | D49: 78.64123542 | E49: 0.2425125854 | F49: 1.005956578 | I49: 78.88374801 | J49: 0.2372519935 | K49: 8.991583985e-06
B50: 10 | C50: 82.593 | D50: 82.78132204 | E50: 3.477499031 | F50: 0.9974270006 | I50: 86.25882107 | J50: -3.665821069 | K50: 0.001969953812
B51: 11 | C51: 82.19 | D51: 82.25921921 | E51: 0.1578294896 | F51: 0.9975581667 | I51: 82.4170487 | J51: -0.2270487011 | K51: 7.631327339e-06
B52: 12 | C52: 81.348 | D52: 81.75421345 | E52: -0.3923237654 | F52: 0.9966334096 | I52: 81.36188969 | J52: -0.01388968872 | K52: 2.915353793e-08
A53: 2004 | B53: 1 | C53: 83.026 | D53: 82.29987999 | E53: 0.3862081808 | F53: 1.008181167 | I53: 82.68608817 | J53: 0.3399118338 | K53: 1.676117031e-05
B54: 2 | C54: 81.131 | D54: 81.60944844 | E54: -0.5074027897 | F54: 0.992334723 | I54: 81.10204565 | J54: 0.02895434699 | K54: 1.273661119e-07
B55: 3 | C55: 87.391 | D55: =$D$3*C55/F51+(1-$D$3)*(D54+E54) -> 86.30434241 | E55: =$E$3*(D55-D54)+(1-$E$3)*E54 -> 3.810503518 | F55: =$F$3*(C55/D55)+(1-$F$3)*F43 -> 1.016130375 | I55: 90.11484593
B56: 4 | C56: 85.492 | D56: 86.64760021 | E56: 0.9326895701 | F56: 0.9865482015 | I56: 87.58028978
B57: 5 | C57: 86.74 | D57: 86.34495723 | E57: -0.09263644625 | F57: 1.005112895 | I57: 86.25232078
B58: 6 | C58: 85.554 | D58: 86.22235279 | E58: -0.1175098819 | F58: 0.9901027452 | I58: 86.1048429
B59: 7 | C59: 86.683 | D59: 85.46654188 | E59: -0.6472997307 | F59: 1.013260176 | I59: 84.81924215
B60: 8 | C60: 86.381 | D60: 87.01090735 | E60: 1.171782384 | F60: 0.994262664 | I60: 88.18268973
B61: 9 | C61: 89.204 | D61: 88.63672148 | E61: 1.548628734 | F61: 1.006244828 | I61: 90.18535021
B62: 10 | C62: 90.222 | D62: 90.93617102 | E62: 2.171810003 | F62: 0.993994648 | I62: 93.10798102
B63: 11 | C63: 90.658 | D63: 90.19886895 | E63: -0.242753017 | F63: 1.002453994 | I63: 89.95611593
B64: 12 | C64: 91.508 | D64: 91.62005654 | E64: 1.138317689 | F64: 0.9980267064 | I64: 92.75837423
A65: 2005 | B65: 1 | C65: 92.335 | D65: 91.96124472 | E65: 0.4767001901 | F65: 1.005505184 | I65: 92.43794491
B66: 2 | C66: 85.969 | D66: 87.67830357 | E66: -3.473802115 | F66: 0.9846452915 | I66: 84.20450146
B67: 3 | C67: 94.301 | D67: 92.09702223 | E67: 3.076990124 | F67: 1.021200809 | I67: 95.17401235
B68: 4 | C68: 94.401 | D68: 94.70492183 | E68: 2.687644994 | F68: 0.9932059262 | I68: 97.39256683
B69: 5 | C69: 96.119 | D69: 95.95270887 | E69: 1.49256289 | F69: 1.002915998 | I69: 97.44527176
B70: 6 | C70: 92.944 | D70: 95.00376065 | E70: -0.5338913297 | F70: 0.9824434195 | I70: =D70+E70 -> 94.46986932
B71: 7 | C71: 91.093 | D71: 90.25545278 | E71: -4.031857064 | F71: 1.010672893 | I71: 86.22359571
B72: 8 | C72: 92.334 | D72: 91.61721134 | E72: 0.444843907 | F72: 1.003077359 | I72: 92.06205525
B73: 9 | C73: 93.799 | D73: 93.23343313 | E73: 1.417087548 | F73: 1.006128679 | I73: 94.65052068
B74: 10 | C74: 99.11 | D74: 99.63500625 | E74: 5.554210573 | F74: 0.994473085 | I74: 105.1892168
B75: 11 | C75: 95.058 | D75: 96.28117927 | E75: -1.839460598 | F75: 0.9926011415 | I75: 94.44171867
B76: 12 | C76: 95.927 | D76: 95.39450678 | E76: -1.048646462 | F76: 1.002937655 | I76: 94.34586032
A77: 2006 | B77: 1 | C77: 95.639 | D77: 94.91431575 | E77: -0.5768284535 | F77: 1.006889656 | I77: 94.3374873
B78: 2 | C78: 91.586 | D78: 92.54349845 | E78: -2.065839196 | F78: 0.9879006471 | I78: 90.47765926
B79: 3 | C79: 102.457 | D79: 100.6721042 | E79: 6.39555013 | F79: 1.01894465 | I79: 107.0676544
B80: 4 | C80: 102.09 | D80: 102.8463095 | E80: 2.891833894 | F80: 0.9928421149 | I80: 105.7381434
B81: 5 | C81: 105.887 | D81: 105.2776021 | E81: 2.509584599 | F81: 1.004783115 | I81: 107.7871867
B82: 6 | C82: 105.158 | D82: 106.7141788 | E82: 1.61898807 | F82: 0.9843764543 | I82: 108.3331669
B83: 7 | C83: 104.269 | D83: 103.5309427 | E83: -2.366858 | F83: 1.00836927 | I83: 101.1640847
B84: 8 | C84: 102.524 | D84: 102.8433335 | E84: -0.9730814697 | F84: 0.9990587943 | I84: 101.8702521
B85: 9 | C85: 103.787 | D85: 103.0084008 | E85: -0.0284180086 | F85: 1.007058127 | I85: 102.9799828
B86: 10 | C86: 106.817 | D86: 107.4058747 | E86: 3.645072236 | F86: 0.9945018219 | I86: 111.0509469
B87: 11 | C87: 104.707 | D87: 105.2805511 | E87: -1.144356267 | F87: 0.9938693066 | I87: 104.1361948
B88: 12 | C88: 106.597 | D88: 106.1851783 | E88: 0.5563000449 | F88: 1.003549097 | I88: 106.7414784
A89: 2007 | B89: 1 | C89: 108.025 | D89: 107.1626074 | E89: 0.9058370837 | F89: 1.007642264 | I89: 108.0684444
B90: 2 | C90: 101.489 | D90: 103.2537605 | E90: -3.090350552 | F90: 0.9846557585 | I90: 100.16341
B91: 3 | C91: 113.136 | D91: 111.0997865 | E91: 5.986841952 | F91: 1.018543691 | I91: 117.0866284
B92: 4 | C92: 110.443 | D92: 111.4592564 | E92: 1.316123127 | F92: 0.9915682101 | I92: 112.7753795
B93: 5 | C93: 113.073 | D93: 112.327412 | E93: 0.9443100931 | F93: 1.005988551 | I93: 113.2717221
B94: 6 | C94: 112.433 | D94: 114.0024112 | E94: 1.550782076 | F94: 0.985583551 | I94: 115.5531933
B95: 7 | C95: 110.392 | D95: 109.816394 | E95: -3.210761376 | F95: 1.00633624 | I95: 106.6056326
B96: 8 | C96: 109.053 | D96: 109.3053914 | E96: -0.9699615927 | F96: 0.9981696971 | I96: 108.3354298
B97: 9 | C97: 112.028 | D97: 110.7559726 | E97: 1.039088973 | F97: 1.009935565 | I97: 111.7950616
B98: 10 | C98: 114.902 | D98: 115.6251793 | E98: 4.218086643 | F98: 0.9940102038 | I98: 119.8432659
B99: 11 | C99: 109.943 | D99: 111.369262 | E99: -2.815336615 | F99: 0.9895299651 | I99: 108.5539254
B100: 12 | C100: 112.401 | D100: 111.7964692 | E100: -0.1240252574 | F100: 1.004757009 | I100: 111.6724439
A101: 2008 | B101: 1 | C101: 113.195 | D101: 111.9996151 | E101: 0.1475267935 | F101: 1.009612318 | I101: 112.1471418
B102: 2 | C102: 107.324 | D102: 108.8060065 | E102: -2.625615572 | F102: 0.9857761053 | I102: 106.1803909
B103: 3 | C103: 119.927 | D103: 118.1928186 | E103: 7.344699457 | F103: 1.016027401 | I103: 125.5375181
B104: 4 | C104: 117.814 | D104: 118.9124725 | E104: 1.845911645 | F104: 0.991044397 | I104: 120.7583842
B105: 5 | C105: 121.846 | D105: 120.7004196 | E105: 1.797801035 | F105: 1.008265211 | I105: 122.4982206
B106: 6 | C106: 119.341 | D106: 121.3500339 | E106: 0.8448060252 | F106: 0.9841930426 | I106: 122.1948399
B107: 7 | C107: 117.285 | D107: 116.7868711 | E107: -3.643808109 | F107: 1.004990117 | I107: 113.143063
B108: 8 | C108: 112.997 | D108: 113.8430933 | E108: -3.062782946 | F108: 0.9945285289 | I108: 110.7803103
B109: 9 | C109: 108.027 | D109: 107.8692247 | E109: -5.478984046 | F109: 1.004428173 | I109: 102.3902406
B110: 10 | C110: 99.236 | D110: 101.1418982 | E110: -6.515108277 | F110: 0.9856550984 | I110: 94.62678989
B111: 11 | C111: 86.511 | D111: 87.79051278 | E111: -12.18921827 | F111: 0.9868619891 | I111: 75.60129451
B112: 12 | C112: 81.855 | D112: 80.9645239 | E112: -7.737737884 | F112: 1.00881388 | I112: 73.22678601
A113: 2009 | B113: 1 | C113: 86.591 | D113: 83.61275763 | E113: 0.8826185563 | F113: 1.026516969 | I113: 84.49537618
B114: 2 | C114: 86.319 | D114: 86.95928201 | E114: 2.927660394 | F114: 0.9902356807 | I114: 89.88694241
B115: 3 | C115: 91.908 | D115: 92.48263928 | E115: 5.082088801 | F115: 1.001570827 | I115: 97.56472808
B116: 4 | C116: 89.584 | D116: 90.5539983 | E116: -0.7368169222 | F116: 0.9899028548 | I116: 89.81718137
B117: 5 | C117: 96.065 | D117: 92.83019672 | E117: 1.763985811 | F117: 1.02554302 | I117: 94.59418253
B118: 6 | C118: 100.933 | D118: 100.4614446 | E118: 6.633813302 | F118: 0.9975185964 | I118: 107.0952579
B119: 7 | C119: 105.324 | D119: =$D$3*C119/F115+(1-$D$3)*(D118+E118) -> 105.5461026 | E119: =$E$3*(D119-D118)+(1-$E$3)*E118 -> 5.348014391 | F119: =$F$3*(C119/D119)+(1-$F$3)*F107 -> 1.000378734 | I119: 110.8941169
B120: 8 | C120: 108.42 | D120: 109.7995425 | E120: 4.439517617 | F120: 0.9899182604 | I120: 114.2390601
B121: 9 | C121: 110.904 | D121: 109.3611989 | E121: 0.3908927706 | F121: 1.010719664 | I121: 109.7520916
B122: 10 | C122: 115.067 | D122: 114.2330087 | E122: 4.110053911 | F122: 0.9997247986 | I122: 118.3430626
B123: 11 | C123: 108.636 | D123: 110.5445096 | E123: -2.362745047 | F123: 0.9841796892 | I123: 108.1817646
B124: 12 | C124: 107.841 | D124: 108.787791 | E124: -1.859743103 | F124: 0.9974278431 | I124: 106.9280479
A125: 2010 | B125: 1 | C125: 112.792 | D125: 110.6621946 | E125: 1.239598614 | F125: 1.021790844 | I125: 111.9017932
B126: 2 | C126: 107.215 | D126: 108.1759697 | E126: -1.852834864 | F126: 0.9908082825 | I126: 106.3231348
B127: 3 | C127: 120.958 | D127: 119.5865097 | E127: 9.155766276 | F127: 1.008004382 | I127: 128.742276
B128: 4 | C128: 120.927 | D128: 122.7395315 | E128: 4.173488323 | F128: 0.9868672542 | I128: 126.9130198
B129: 5 | C129: 124.707 | D129: 123.0205898 | E129: 0.942771459 | F129: 1.017850489 | I129: 123.9633613
B130: 6 | C130: 118.271 | D130: 120.2872313 | E130: -2.108416459 | F130: 0.9882363346 | I130: 118.1788148
B131: 7 | C131: 114.438 | D131: 114.4591777 | E131: -5.19571528 | F131: 1.000012292 | I131: 109.2634624
B132: 8 | C132: 113.513 | D132: 113.8715528 | E132: -1.371000266 | F132: 0.9944247052 | I132: 112.5005525
B133: 9 | C133: 112.695 | D133: 111.0750053 | E133: -2.554204437 | F133: 1.013231932 | I133: 108.5208009
B134: 10 | C134: 116.782 | D134: 116.2418702 | E134: 3.854283065 | F134: 1.002923972 | I134: =D134+E134 -> 120.0961532
B135: 11 | C135: 114.264 | D135: 115.4293071 | E135: -0.01919923878 | F135: 0.9879008697 | I135: 115.4101078
B136: 12 | C136: 115.167 | D136: 115.7321735 | E136: 0.2481152418 | F136: 0.9959254959 | I136: 115.9802887
A137: 2011 | B137: 1 | C137: 128.059 | D137: 124.305386 | E137: 7.157945979 | F137: 1.027254659 | I137: 131.463332
B138: 2 | C138: 118.372 | D138: 120.7141806 | E138: -1.763849681 | F138: 0.9841711463 | I138: 118.9503309
B139: 3 | C139: 129.858 | D139: 128.9487953 | E139: 6.534875817 | F139: 1.007384617 | I139: 135.4836712
B140: 4 | C140: 126.694 | D140: 128.866596 | E140: 1.042703393 | F140: 0.9844450174 | I140: 129.9092993
B141: 5 | C141: 129.971 | D141: 127.1999942 | E141: -1.206019898 | F141: 1.020407686 | I141: 125.9939743
B142: 6 | C142: 127.674 | D142: 128.9807441 | E142: 1.27299909 | F142: 0.9892973644 | I142: 130.2537432
B143: 7 | C143: 127.259 | D143: 127.1116526 | E143: -1.334936119 | F143: 1.00075778 | I143: 125.7767165
B144: 8 | C144: 124.301 | D144: 126.1673838 | E144: -1.010682237 | F144: 0.9884332498 | I144: 125.1567016
B145: 9 | C145: 122.939 | D145: 121.4155614 | E145: -4.115828585 | F145: 1.012786927 | I145: 117.2997328
B146: 10 | C146: 123.533 | D146: 123.3554922 | E146: 0.9104516817 | F146: 1.001958736 | I146: 124.2659439
B147: 11 | C147: 115.368 | D147: 117.0777029 | E147: -5.055788318 | F147: 0.9862732588 | I147: 112.0219146
B148: 12 | C148: 117.058 | D148: 117.146643 | E148: -0.8022637568 | F148: 0.998082079 | I148: 116.3443792
A149: 2012 | B149: 1 | C149: 123.768 | D149: 121.0331709 | E149: 3.089433361 | F149: 1.024226335 | I149: 124.1226043
B150: 2 | C150: 121.037 | D150: 121.464828 | E150: 0.8834790389 | F150: 0.9921704467 | I150: 122.348307
B151: 3 | C151: 132.637 | D151: 132.0560722 | E151: 8.940924143 | F151: 1.00544403 | I151: 140.9969964
B152: 4 | C152: 129.599 | D152: 132.0778299 | E152: 1.538015972 | F152: 0.9823565897 | I152: 133.6158459
B153: 5 | C153: 131.387 | D153: 129.3465801 | E153: -2.005474636 | F153: 1.017396328 | I153: 127.3411054
B154: 6 | C154: 127.431 | D154: 128.2175021 | E154: -1.278065439 | F154: 0.9922668969 | I154: 126.9394366
B155: 7 | C155: 128.65 | D155: 127.7506215 | E155: -0.6047819951 | F155: 1.004841295 | I155: 127.1458395
B156: 8 | C156: 123.707 | D156: 126.1722189 | E156: -1.4128871 | F156: 0.983251597 | I156: 124.7593318
B157: 9 | C157: 123.648 | D157: 122.1788735 | E157: -3.554667488 | F157: 1.012291278 | I157: 118.624206
B158: 10 | C158: 125.075 | D158: 124.5646458 | E158: 1.375897547 | F158: 1.003348675 | I158: 125.9405433
B159: 11 | C159: 121.99 | D159: 122.3099134 | E159: -1.637525327 | F159: 0.9934955029 | I159: 120.6723881
B160: 12 | C160: 121.293 | D160: 122.8217315 | E160: 0.14642974 | F160: 0.9912383395 | I160: 122.9681612
A161: 2013 | B161: 1 | F161: =F149 -> 1.024226335 | G161: 1 | H161: =($D$160+$E$160*G161)*F149 -> 125.9472291 | I161: =H161 -> 125.9472291
B162: 2 | F162: =F150 -> 0.9921704467 | G162: 2 | H162: =($D$160+$E$160*G162)*F150 -> 122.1506587 | I162: =H162 -> 122.1506587
B163: 3 | F163: 1.00544403 | G163: 3 | H163: 123.9320575 | I163: 123.9320575
B164: 4 | F164: 0.9823565897 | G164: 4 | H164: 121.2301222 | I164: 121.2301222
B165: 5 | F165: 1.017396328 | G165: 5 | H165: 125.703264 | I165: 125.703264
B166: 6 | F166: 0.9922668969 | G166: 6 | H166: =($D$160+$E$160*G166)*F154 -> 122.7437227 | I166: 122.7437227
B167: 7 | F167: 1.004841295 | G167: 7 | H167: 124.4463183 | I167: 124.4463183
B168: 8 | F168: 0.983251597 | G168: 8 | H168: 121.9164819 | I168: 121.9164819
B169: 9 | F169: 1.012291278 | G169: 9 | H169: 125.6654335 | I169: 125.6654335
B170: 10 | F170: 1.003348675 | G170: 10 | H170: 124.7022224 | I170: 124.7022224
B171: 11 | F171: 0.9934955029 | G171: 11 | H171: 123.6230881 | I171: 123.6230881
B172: 12 | F172: 0.9912383395 | G172: 12 | H172: 123.4873705 | I172: 123.4873705
A173: 2014 | B173: 1 | F173: 1.024226335 | G173: 13 | H173: 127.7469554 | I173: 127.7469554
B174: 2 | F174: 0.9921704467 | G174: 14 | H174: 123.8940579 | I174: 123.8940579
B175: 3 | F175: 1.00544403 | G175: 15 | H175: 125.6987804 | I175: 125.6987804
B176: 4 | F176: 0.9823565897 | G176: 16 | H176: 122.9562768 | I176: 122.9562768
B177: 5 | F177: 1.017396328 | G177: 17 | H177: 127.4909889 | I177: 127.4909889
B178: 6 | F178: 0.9922668969 | G178: 18 | H178: 124.4872913 | I178: 124.4872913
B179: 7 | F179: 1.004841295 | G179: 19 | H179: 126.2119821 | I179: 126.2119821
B180: 8 | F180: 0.983251597 | G180: 20 | H180: 123.6442092 | I180: 123.6442092
B181: 9 | F181: 1.012291278 | G181: 21 | H181: 127.4441881 | I181: 127.4441881
B182: 10 | F182: 1.003348675 | G182: 22 | H182: 126.4652634 | I182: 126.4652634
B183: 11 | F183: 0.9934955029 | G183: 23 | H183: 125.3688155 | I183: 125.3688155
B184: 12 | F184: 0.9912383395 | G184: 24 | H184: 125.2291317 | I184: 125.2291317
A185: 2015 | B185: 1 | F185: 1.024226335 | G185: 25 | H185: 129.5466818 | I185: 129.5466818
B186: 2 | F186: 0.9921704467 | G186: 26 | H186: 125.637457 | I186: 125.637457
B187: 3 | F187: 1.00544403 | G187: 27 | H187: 127.4655033 | I187: 127.4655033
B188: 4 | F188: 0.9823565897 | G188: 28 | H188: 124.6824315 | I188: 124.6824315
B189: 5 | F189: 1.017396328 | G189: 29 | H189: 129.2787139 | I189: 129.2787139
B190: 6 | F190: 0.9922668969 | G190: 30 | H190: 126.2308599 | I190: 126.2308599
B191: 7 | F191: 1.004841295 | G191: 31 | H191: 127.9776459 | I191: 127.9776459
B192: 8 | F192: 0.983251597 | G192: 32 | H192: 125.3719365 | I192: 125.3719365
B193: 9 | F193: 1.012291278 | G193: 33 | H193: 129.2229427 | I193: 129.2229427
B194: 10 | F194: 1.003348675 | G194: 34 | H194: 128.2283044 | I194: 128.2283044
B195: 11 | F195: 0.9934955029 | G195: 35 | H195: 127.114543 | I195: 127.114543
B196: 12 | F196: 0.9912383395 | G196: 36 | H196: 126.970893 | I196: 126.970893
A197: 2016 | B197: 1 | F197: 1.024226335 | G197: 37 | H197: 131.3464081 | I197: 131.3464081
B198: 2 | F198: 0.9921704467 | G198: 38 | H198: 127.3808561 | I198: 127.3808561
B199: 3 | F199: 1.00544403 | G199: 39 | H199: 129.2322262 | I199: 129.2322262
B200: 4 | F200: 0.9823565897 | G200: 40 | H200: 126.4085861 | I200: 126.4085861
... 92 more rows

Sheet Forecast4AC PRO
A2: Уважаемые коллеги, предлагаем вам программу для прогнозирования в Excel Forecast4AC PRO
A3: Программа Forecast4AC PRO рассчитает для вас прогноз в Excel быстро и легко, одним нажатием клавиши, значительно сэкономив ваше время. Теперь каждый руководитель и менеджер сможет сделать прогноз с учётом роста и сезонности одним нажатием клавиши. Это позволит эффективно управлять будущим, извлекая максимум прибыли и избегая необоснованных убытков. Возможности Forecast4AC PRO: • Расчет прогноза с учетом роста и сезонности по дням, месяцам, кварталам • 8 уравнений тренда с возможностью автоматического выбора оптимального • Расчет коэффициентов сезонности, очищенных от роста • 4 способа расчета прогноза по методу скользящей средней • 4 варианта графического анализа данных • Автоматическая корректировка дефицита и пиков • Расчет доверительного интервала с возможностью задать Сигма от 1 до 3 • Анализ каждого этапа вычисления • Удобное меню на панеле инструментов в Excel Легко интегрировать в имеющиеся бизнес процессы, т.к. прогноз можно рассчитать на основании данных OLAP-кубов, аналитических BI систем, сводных таблиц и отчетов в Excel из учетных систем. Интуитивно понятный интерфейс, простота установки и настройки позволяет моментально приступить к работе.
A4: Зарегистрируйтесь и протестируйте Forecast4AC PRO 4analytics.ru
A6: Зарегистрируйтесь на сайте 4analytics.ru и протестируйте Forecast4AC PRO

Sheet ForLin
B1: данные с прогнозом | C1: порядковый номер периода | D1: 1 | E1: 2 | F1: 3 | G1: 4 | H1: 5 | I1: 6 | J1: 7 | K1: 8 | L1: 9 | M1: 10 | N1: 11 | O1: 12 | P1: 13 | Q1: 14 | R1: 15 | S1: 16 | T1: 17 | U1: 18 | V1: 19 | W1: 20 | X1: 21 | Y1: 22 | Z1: 23 | AA1: 24 | AB1: 25 | AC1: 26 | AD1: 27 | AE1: 28 | AF1: 29 | AG1: 30 | AH1: 31 | AI1: 32 | AJ1: 33 | AK1: 34 | AL1: 35 | AM1: 36 | AN1: 37 | AO1: 38 | AP1: 39 | AQ1: 40 | AR1: 41 | AS1: 42 | AT1: 43 | AU1: 44 | AV1: 45 | AW1: 46 | AX1: 47 | AY1: 48 | AZ1: 49 | BA1: 50 | BB1: 51 | BC1: 52 | BD1: 53 | BE1: 54 | BF1: 55 | BG1: 56 | BH1: 57 | BI1: 58 | BJ1: 59 | BK1: 60 | BL1: 61 | BM1: 62 | BN1: 63 | BO1: 64 | BP1: 65 | BQ1: 66 | BR1: 67 | BS1: 68 | BT1: 69 | BU1: 70 | BV1: 71 | BW1: 72 | BX1: 73 | BY1: 74 | BZ1: 75 | CA1: 76 | CB1: 77 | CC1: 78 | CD1: 79 | CE1: 80 | CF1: 81 | CG1: 82 | CH1: 83 | CI1: 84 | CJ1: 85 | CK1: 86 | CL1: 87 | CM1: 88 | CN1: 89 | CO1: 90 | CP1: 91 | CQ1: 92 | CR1: 93 | CS1: 94 | CT1: 95 | CU1: 96 | CV1: 97 | CW1: 98 | CX1: 99 | CY1: 100 | CZ1: 101 | DA1: 102 | DB1: 103 | DC1: 104 | DD1: 105 | DE1: 106 | DF1: 107 | DG1: 108 | DH1: 109 | DI1: 110 | DJ1: 111 | DK1: 112 | DL1: 113 | DM1: 114 | DN1: 115 | DO1: 116 | DP1: 117 | DQ1: 118 | DR1: 119 | DS1: 120 | DT1: 121 | DU1: 122 | DV1: 123 | DW1: 124 | DX1: 125 | DY1: 126 | DZ1: 127 | EA1: 128 | EB1: 129 | EC1: 130 | ED1: 131 | EE1: 132 | EF1: 133 | EG1: 134 | EH1: 135 | EI1: 136 | EJ1: 137 | EK1: 138 | EL1: 139 | EM1: 140 | EN1: 141 | EO1: 142 | EP1: 143 | EQ1: 144 | ER1: 145 | ES1: 146 | ET1: 147 | EU1: 148 | EV1: 149 | EW1: 150 | EX1: 151 | EY1: 152 | EZ1: 153 | FA1: 154 | FB1: 155 | FC1: 156
B2: данные с прогнозом | C2: номер периода | D2: 1 | E2: 2 | F2: 3 | G2: 4 | H2: 5 | I2: 6 | J2: 7 | K2: 8 | L2: 9 | M2: 10 | N2: 11 | O2: 12 | P2: 1 | Q2: 2 | R2: 3 | S2: 4 | T2: 5 | U2: 6 | V2: 7 | W2: 8 | X2: 9 | Y2: 10 | Z2: 11 | AA2: 12 | AB2: 1 | AC2: 2 | AD2: 3 | AE2: 4 | AF2: 5 | AG2: 6 | AH2: 7 | AI2: 8 | AJ2: 9 | AK2: 10 | AL2: 11 | AM2: 12 | AN2: 1 | AO2: 2 | AP2: 3 | AQ2: 4 | AR2: 5 | AS2: 6 | AT2: 7 | AU2: 8 | AV2: 9 | AW2: 10 | AX2: 11 | AY2: 12 | AZ2: 1 | BA2: 2 | BB2: 3 | BC2: 4 | BD2: 5 | BE2: 6 | BF2: 7 | BG2: 8 | BH2: 9 | BI2: 10 | BJ2: 11 | BK2: 12 | BL2: 1 | BM2: 2 | BN2: 3 | BO2: 4 | BP2: 5 | BQ2: 6 | BR2: 7 | BS2: 8 | BT2: 9 | BU2: 10 | BV2: 11 | BW2: 12 | BX2: 1 | BY2: 2 | BZ2: 3 | CA2: 4 | CB2: 5 | CC2: 6 | CD2: 7 | CE2: 8 | CF2: 9 | CG2: 10 | CH2: 11 | CI2: 12 | CJ2: 1 | CK2: 2 | CL2: 3 | CM2: 4 | CN2: 5 | CO2: 6 | CP2: 7 | CQ2: 8 | CR2: 9 | CS2: 10 | CT2: 11 | CU2: 12 | CV2: 1 | CW2: 2 | CX2: 3 | CY2: 4 | CZ2: 5 | DA2: 6 | DB2: 7 | DC2: 8 | DD2: 9 | DE2: 10 | DF2: 11 | DG2: 12 | DH2: 1 | DI2: 2 | DJ2: 3 | DK2: 4 | DL2: 5 | DM2: 6 | DN2: 7 | DO2: 8 | DP2: 9 | DQ2: 10 | DR2: 11 | DS2: 12 | DT2: 1 | DU2: 2 | DV2: 3 | DW2: 4 | DX2: 5 | DY2: 6 | DZ2: 7 | EA2: 8 | EB2: 9 | EC2: 10 | ED2: 11 | EE2: 12 | EF2: 1 | EG2: 2 | EH2: 3 | EI2: 4 | EJ2: 5 | EK2: 6 | EL2: 7 | EM2: 8 | EN2: 9 | EO2: 10 | EP2: 11 | EQ2: 12 | ER2: 1 | ES2: 2 | ET2: 3 | EU2: 4 | EV2: 5 | EW2: 6 | EX2: 7 | EY2: 8 | EZ2: 9 | FA2: 10 | FB2: 11 | FC2: 12
B3: данные с прогнозом | C3: данные за анализируемые периоды | D3: 67.575 | E3: 65.668 | F3: 70.869 | G3: 69.303 | H3: 72.313 | I3: 69.313 | J3: 70.625 | K3: 67.826 | L3: 68.425 | M3: 71.027 | N3: 68.471 | O3: 68.086 | P3: 69.039 | Q3: 64.406 | R3: 71.348 | S3: 70.329 | T3: 70.775 | U3: 70.034 | V3: 68.858 | W3: 67.685 | X3: 69.427 | Y3: 70.523 | Z3: 67.48 | AA3: 67.831 | AB3: 69.243 | AC3: 66.314 | AD3: 73.833 | AE3: 72.14 | AF3: 75.667 | AG3: 74.461 | AH3: 74.468 | AI3: 74.592 | AJ3: 75.549 | AK3: 77.52 | AL3: 76.281 | AM3: 75.598 | AN3: 75.552 | AO3: 71.085 | AP3: 81.324 | AQ3: 78.513 | AR3: 81.249 | AS3: 79.181 | AT3: 78.704 | AU3: 78.097 | AV3: 79.121 | AW3: 82.593 | AX3: 82.19 | AY3: 81.348 | AZ3: 83.026 | BA3: 81.131 | BB3: 87.391 | BC3: 85.492 | BD3: 86.74 | BE3: 85.554 | BF3: 86.683 | BG3: 86.381 | BH3: 89.204 | BI3: 90.222 | BJ3: 90.658 | BK3: 91.508 | BL3: 92.335 | BM3: 85.969 | BN3: 94.301 | BO3: 94.401 | BP3: 96.119 | BQ3: 92.944 | BR3: 91.093 | BS3: 92.334 | BT3: 93.799 | BU3: 99.11 | BV3: 95.058 | BW3: 95.927 | BX3: 95.639 | BY3: 91.586 | BZ3: 102.457 | CA3: 102.09 | CB3: 105.887 | CC3: 105.158 | CD3: 104.269 | CE3: 102.524 | CF3: 103.787 | CG3: 106.817 | CH3: 104.707 | CI3: 106.597 | CJ3: 108.025 | CK3: 101.489 | CL3: 113.136 | CM3: 110.443 | CN3: 113.073 | CO3: 112.433 | CP3: 110.392 | CQ3: 109.053 | CR3: 112.028 | CS3: 114.902 | CT3: 109.943 | CU3: 112.401 | CV3: 113.195 | CW3: 107.324 | CX3: 119.927 | CY3: 117.814 | CZ3: 121.846 | DA3: 119.341 | DB3: 117.285 | DC3: 112.997 | DD3: 108.027 | DE3: 99.236 | DF3: 86.511 | DG3: 81.855 | DH3: 86.591 | DI3: 86.319 | DJ3: 91.908 | DK3: 89.584 | DL3: 96.065 | DM3: 100.933 | DN3: 105.324 | DO3: 108.42 | DP3: 110.904 | DQ3: 115.067 | DR3: 108.636 | DS3: 107.841 | DT3: 112.792 | DU3: 107.215 | DV3: 120.958 | DW3: 120.927 | DX3: 124.707 | DY3: 118.271 | DZ3: 114.438 | EA3: 113.513 | EB3: 112.695 | EC3: 116.782 | ED3: 114.264 | EE3: 115.167 | EF3: 128.059 | EG3: 118.372 | EH3: 129.858 | EI3: 126.694 | EJ3: 129.971 | EK3: 127.674 | EL3: 127.259 | EM3: 124.301 | EN3: 122.939 | EO3: 123.533 | EP3: 115.368 | EQ3: 117.058 | ER3: 123.768 | ES3: 121.037 | ET3: 132.637 | EU3: 129.599 | EV3: 131.387 | EW3: 127.431 | EX3: 128.65 | EY3: 123.707 | EZ3: 123.648 | FA3: 125.075 | FB3: 121.99 | FC3: 121.293
B4: данные с прогнозом | C4: Коэффициенты тренда | D4: =LINEST(D3:FC3,D1:FC1,TRUE,TRUE) -> 0.4156997044 | E4: 64.31668859
B5: данные с прогнозом | C5: Cтандартная ошибка для коэффициентов | D5: 0.01281072305 | E5: 1.159364538
B6: данные с прогнозом | C6: сложившейся тренд | D6: 64.73238829 | E6: 65.14808799 | F6: 65.5637877 | G6: 65.9794874 | H6: 66.39518711 | I6: 66.81088681 | J6: 67.22658652 | K6: 67.64228622 | L6: 68.05798593 | M6: 68.47368563 | N6: 68.88938533 | O6: 69.30508504 | P6: 69.72078474 | Q6: 70.13648445 | R6: 70.55218415 | S6: 70.96788386 | T6: 71.38358356 | U6: 71.79928327 | V6: 72.21498297 | W6: 72.63068267 | X6: 73.04638238 | Y6: 73.46208208 | Z6: 73.87778179 | AA6: 74.29348149 | AB6: 74.7091812 | AC6: 75.1248809 | AD6: 75.54058061 | AE6: 75.95628031 | AF6: 76.37198001 | AG6: 76.78767972 | AH6: 77.20337942 | AI6: 77.61907913 | AJ6: 78.03477883 | AK6: 78.45047854 | AL6: 78.86617824 | AM6: 79.28187795 | AN6: 79.69757765 | AO6: 80.11327735 | AP6: 80.52897706 | AQ6: 80.94467676 | AR6: 81.36037647 | AS6: 81.77607617 | AT6: 82.19177588 | AU6: 82.60747558 | AV6: 83.02317529 | AW6: 83.43887499 | AX6: 83.85457469 | AY6: 84.2702744 | AZ6: 84.6859741 | BA6: 85.10167381 | BB6: 85.51737351 | BC6: 85.93307322 | BD6: 86.34877292 | BE6: 86.76447263 | BF6: 87.18017233 | BG6: 87.59587203 | BH6: 88.01157174 | BI6: 88.42727144 | BJ6: 88.84297115 | BK6: 89.25867085 | BL6: 89.67437056 | BM6: 90.09007026 | BN6: 90.50576997 | BO6: 90.92146967 | BP6: 91.33716937 | BQ6: 91.75286908 | BR6: 92.16856878 | BS6: 92.58426849 | BT6: 92.99996819 | BU6: 93.4156679 | BV6: 93.8313676 | BW6: 94.24706731 | BX6: 94.66276701 | BY6: 95.07846671 | BZ6: 95.49416642 | CA6: 95.90986612 | CB6: 96.32556583 | CC6: 96.74126553 | CD6: 97.15696524 | CE6: 97.57266494 | CF6: 97.98836465 | CG6: 98.40406435 | CH6: 98.81976405 | CI6: 99.23546376 | CJ6: 99.65116346 | CK6: 100.0668632 | CL6: 100.4825629 | CM6: 100.8982626 | CN6: 101.3139623 | CO6: 101.729662 | CP6: 102.1453617 | CQ6: 102.5610614 | CR6: 102.9767611 | CS6: 103.3924608 | CT6: 103.8081605 | CU6: 104.2238602 | CV6: 104.6395599 | CW6: 105.0552596 | CX6: 105.4709593 | CY6: 105.886659 | CZ6: 106.3023587 | DA6: 106.7180584 | DB6: 107.1337581 | DC6: 107.5494578 | DD6: 107.9651576 | DE6: 108.3808573 | DF6: 108.796557 | DG6: 109.2122567 | DH6: 109.6279564 | DI6: 110.0436561 | DJ6: 110.4593558 | DK6: 110.8750555 | DL6: 111.2907552 | DM6: 111.7064549 | DN6: 112.1221546 | DO6: 112.5378543 | DP6: 112.953554 | DQ6: 113.3692537 | DR6: 113.7849534 | DS6: 114.2006531 | DT6: 114.6163528 | DU6: 115.0320525 | DV6: 115.4477522 | DW6: 115.8634519 | DX6: 116.2791516 | DY6: 116.6948513 | DZ6: 117.1105511 | EA6: 117.5262508 | EB6: 117.9419505 | EC6: 118.3576502 | ED6: 118.7733499 | EE6: 119.1890496 | EF6: 119.6047493 | EG6: 120.020449 | EH6: 120.4361487 | EI6: 120.8518484 | EJ6: 121.2675481 | EK6: 121.6832478 | EL6: 122.0989475 | EM6: 122.5146472 | EN6: 122.9303469 | EO6: 123.3460466 | EP6: 123.7617463 | EQ6: 124.177446 | ER6: 124.5931457 | ES6: 125.0088454 | ET6: 125.4245451 | EU6: 125.8402448 | EV6: 126.2559445 | EW6: 126.6716443 | EX6: 127.087344 | EY6: 127.5030437 | EZ6: 127.9187434 | FA6: 128.3344431 | FB6: 128.7501428 | FC6: 129.1658425
B7: данные с прогнозом | C7: отклонения текущего месяца от сложившегося тренда | D7: 1.043913283 | E7: 1.007980465 | F7: 1.080916806 | G7: 1.050371907 | H7: 1.089130149 | I7: 1.037450681 | J7: 1.050551629 | K7: 1.002715961 | L7: 1.005392667 | M7: 1.037288987 | N7: 0.9939267083 | O7: 0.982409876 | P7: 0.9902212124 | Q7: 0.9182952426 | R7: 1.011279819 | S7: 0.9909975637 | T7: 0.9914744605 | U7: 0.9754136367 | V7: 0.9535140378 | W7: 0.9319064273 | X7: 0.9504509017 | Y7: 0.9599918489 | Z7: 0.9134004618 | AA7: 0.9130141519 | AB7: 0.9268338762 | AC7: 0.8827168736 | AD7: 0.9773951882 | AE7: 0.9497568826 | AF7: 0.9907691274 | AG7: 0.9696998304 | AH7: 0.964569175 | AI7: 0.9610008369 | AJ7: 0.9681452441 | AK7: 0.9881392879 | AL7: 0.9672206984 | AM7: 0.9535344263 | AN7: 0.947983643 | AO7: 0.8873061039 | AP7: 1.009872508 | AQ7: 0.969958781 | AR7: 0.9986310724 | AS7: 0.9682660713 | AT7: 0.9575653909 | AU7: 0.9453986997 | AV7: 0.9529989636 | AW7: 0.9898623395 | AX7: 0.9801492679 | AY7: 0.9653225954 | AZ7: 0.9803984766 | BA7: 0.953342001 | BB7: 1.021909308 | BC7: 0.9948672473 | BD7: 1.004530778 | BE7: 0.9860487526 | BF7: 0.9942971857 | BG7: 0.9861309442 | BH7: 1.01354854 | BI7: 1.020296098 | BJ7: 1.020429628 | BK7: 1.025200119 | BL7: 1.029669898 | BM7: 0.95425611 | BN7: 1.04193357 | BO7: 1.038269623 | BP7: 1.052353611 | BQ7: 1.012981947 | BR7: 0.9883304168 | BS7: 0.9972968573 | BT7: 1.008591743 | BU7: 1.060956928 | BV7: 1.013072733 | BW7: 1.017824774 | BX7: 1.010312745 | BY7: 0.9632675322 | BZ7: 1.072913706 | CA7: 1.064436894 | CB7: 1.099261646 | CC7: 1.087002526 | CD7: 1.073201491 | CE7: 1.050745104 | CF7: 1.059176774 | CG7: 1.085493782 | CH7: 1.059575491 | CI7: 1.074182515 | CJ7: 1.084031498 | CK7: 1.014211866 | CL7: 1.125926696 | CM7: 1.094597639 | CN7: 1.116065323 | CO7: 1.105213542 | CP7: 1.08073434 | CQ7: 1.063298278 | CR7: 1.087895937 | CS7: 1.111318941 | CT7: 1.059097854 | CU7: 1.078457464 | CV7: 1.081761048 | CW7: 1.021595686 | CX7: 1.137061811 | CY7: 1.112642528 | CZ7: 1.146221038 | DA7: 1.118283089 | DB7: 1.094752971 | DC7: 1.050651507 | DD7: 1.0005728 | DE7: 0.9156229477 | DF7: 0.795163031 | DG7: 0.7495037874 | DH7: 0.7898623934 | DI7: 0.7844068716 | DJ7: 0.8320526528 | DK7: 0.8079725382 | DL7: 0.8631893982 | DM7: 0.9035556638 | DN7: 0.93936832 | DO7: 0.9634091628 | DP7: 0.9818548958 | DQ7: 1.014975368 | DR7: 0.9547483805 | DS7: 0.9443115871 | DT7: 0.9840829622 | DU7: 0.9320445706 | DV7: 1.047729364 | DW7: 1.043702721 | DX7: 1.072479445 | DY7: 1.013506583 | DZ7: 0.9771792462 | EA7: 0.9658523034 | EB7: 0.9555124327 | EC7: 0.9866873822 | ED7: 0.9620339927 | EE7: 0.9662548734 | EF7: 1.070684908 | EG7: 0.9862652657 | EH7: 1.078231091 | EI7: 1.048341434 | EJ7: 1.07177066 | EK7: 1.04923235 | EL7: 1.042261236 | EM7: 1.014580728 | EN7: 1.00007039 | EO7: 1.001515682 | EP7: 0.9321781845 | EQ7: 0.9426671569 | ER7: 0.9933772783 | ES7: 0.9682274849 | ET7: 1.057504333 | EU7: 1.029869261 | EV7: 1.04064011 | EW7: 1.005994678 | EX7: 1.012295922 | EY7: 0.9702278193 | EZ7: 0.9666136232 | FA7: 0.9746019619 | FB7: 0.9474940949 | FC7: 0.9390485725
B8: данные с прогнозом | C8: сезонность | D8: 0.9948564018 | E8: 0.9441473902 | F8: 1.038055912 | G8: 1.015060386 | H8: 1.041270524 | I8: 1.017896104 | J8: 1.009893951 | K8: 0.9925549715 | L8: 0.996217301 | M8: 1.011288581 | N8: 0.9691146558 | O8: 0.9655178384 | P8: =SUM(D8:O8)/12 -> 0.999656168
B9: данные с прогнозом | C9: индексы сезонности | D9: 0.9951985828 | E9: 0.9444721299 | F9: 1.038412951 | G9: 1.015409516 | H9: 1.04162867 | I9: 1.018246209 | J9: 1.010241304 | K9: 0.992896361 | L9: 0.9965599501 | M9: 1.011636414 | N9: 0.969447983 | O9: 0.9658499285
B10: данные с прогнозом | C10: номера прогнозных периодов | D10: 157 | E10: 158 | F10: 159 | G10: 160 | H10: 161 | I10: 162 | J10: 163 | K10: 164 | L10: 165 | M10: 166 | N10: 167 | O10: 168 | P10: 169 | Q10: 170 | R10: 171 | S10: 172 | T10: 173 | U10: 174 | V10: 175 | W10: 176 | X10: 177 | Y10: 178 | Z10: 179 | AA10: 180 | AB10: 181 | AC10: 182 | AD10: 183 | AE10: 184 | AF10: 185 | AG10: 186 | AH10: 187 | AI10: 188 | AJ10: 189 | AK10: 190 | AL10: 191 | AM10: 192 | AN10: 193 | AO10: 194 | AP10: 195 | AQ10: 196 | AR10: 197 | AS10: 198 | AT10: 199 | AU10: 200 | AV10: 201 | AW10: 202 | AX10: 203 | AY10: 204 | AZ10: 205 | BA10: 206 | BB10: 207 | BC10: 208 | BD10: 209 | BE10: 210 | BF10: 211 | BG10: 212 | BH10: 213 | BI10: 214 | BJ10: 215 | BK10: 216 | BL10: 217 | BM10: 218 | BN10: 219 | BO10: 220 | BP10: 221 | BQ10: 222 | BR10: 223 | BS10: 224 | BT10: 225 | BU10: 226 | BV10: 227 | BW10: 228 | BX10: 229 | BY10: 230 | BZ10: 231 | CA10: 232 | CB10: 233 | CC10: 234 | CD10: 235 | CE10: 236 | CF10: 237 | CG10: 238 | CH10: 239 | CI10: 240 | CJ10: 241 | CK10: 242 | CL10: 243 | CM10: 244 | CN10: 245 | CO10: 246 | CP10: 247 | CQ10: 248 | CR10: 249 | CS10: 250 | CT10: 251 | CU10: 252 | CV10: 253 | CW10: 254 | CX10: 255 | CY10: 256 | CZ10: 257 | DA10: 258 | DB10: 259 | DC10: 260 | DD10: 261 | DE10: 262 | DF10: 263 | DG10: 264 | DH10: 265 | DI10: 266 | DJ10: 267 | DK10: 268 | DL10: 269 | DM10: 270 | DN10: 271 | DO10: 272 | DP10: 273 | DQ10: 274 | DR10: 275 | DS10: 276
B11: данные с прогнозом | C11: прогнозный тренд | D11: 129.5815422 | E11: 129.9972419 | F11: 130.4129416 | G11: 130.8286413 | H11: 131.244341 | I11: 131.6600407 | J11: 132.0757404 | K11: 132.4914401 | L11: 132.9071398 | M11: 133.3228395 | N11: 133.7385392 | O11: 134.1542389 | P11: 134.5699386 | Q11: 134.9856383 | R11: 135.401338 | S11: 135.8170378 | T11: 136.2327375 | U11: 136.6484372 | V11: 137.0641369 | W11: 137.4798366 | X11: 137.8955363 | Y11: 138.311236 | Z11: 138.7269357 | AA11: 139.1426354 | AB11: 139.5583351 | AC11: 139.9740348 | AD11: 140.3897345 | AE11: 140.8054342 | AF11: 141.2211339 | AG11: 141.6368336 | AH11: 142.0525333 | AI11: 142.468233 | AJ11: 142.8839327 | AK11: 143.2996324 | AL11: 143.7153321 | AM11: 144.1310318 | AN11: 144.5467315 | AO11: 144.9624312 | AP11: 145.378131 | AQ11: 145.7938307 | AR11: 146.2095304 | AS11: 146.6252301 | AT11: 147.0409298 | AU11: 147.4566295 | AV11: 147.8723292 | AW11: 148.2880289 | AX11: 148.7037286 | AY11: 149.1194283 | AZ11: 149.535128 | BA11: 149.9508277 | BB11: 150.3665274 | BC11: 150.7822271 | BD11: 151.1979268 | BE11: 151.6136265 | BF11: 152.0293262 | BG11: 152.4450259 | BH11: 152.8607256 | BI11: 153.2764253 | BJ11: 153.692125 | BK11: 154.1078247 | BL11: 154.5235245 | BM11: 154.9392242 | BN11: 155.3549239 | BO11: 155.7706236 | BP11: 156.1863233 | BQ11: 156.602023 | BR11: 157.0177227 | BS11: 157.4334224 | BT11: 157.8491221 | BU11: 158.2648218 | BV11: 158.6805215 | BW11: 159.0962212 | BX11: 159.5119209 | BY11: 159.9276206 | BZ11: 160.3433203 | CA11: 160.75902 | CB11: 161.1747197 | CC11: 161.5904194 | CD11: 162.0061191 | CE11: 162.4218188 | CF11: 162.8375185 | CG11: 163.2532182 | CH11: 163.6689179 | CI11: 164.0846177 | CJ11: 164.5003174 | CK11: 164.9160171 | CL11: 165.3317168 | CM11: 165.7474165 | CN11: 166.1631162 | CO11: 166.5788159 | CP11: 166.9945156 | CQ11: 167.4102153 | CR11: 167.825915 | CS11: 168.2416147 | CT11: 168.6573144 | CU11: 169.0730141 | CV11: 169.4887138 | CW11: 169.9044135 | CX11: 170.3201132 | CY11: 170.7358129 | CZ11: 171.1515126 | DA11: 171.5672123 | DB11: 171.982912 | DC11: 172.3986117 | DD11: 172.8143114 | DE11: 173.2300112 | DF11: 173.6457109 | DG11: 174.0614106 | DH11: 174.4771103 | DI11: 174.89281 | DJ11: 175.3085097 | DK11: 175.7242094 | DL11: 176.1399091 | DM11: 176.5556088 | DN11: 176.9713085 | DO11: 177.3870082 | DP11: 177.8027079 | DQ11: 178.2184076 | DR11: 178.6341073 | DS11: 179.049807
B12: данные с прогнозом | C12: прогноз скорректированный на сезонность | D12: 128.9593671 | E12: 122.7787719 | F12: 135.4224876 | G12: 132.8446474 | H12: 136.7078683 | I12: 134.0623374 | J12: 133.4283682 | K12: 131.5502688 | L12: 132.4499326 | M12: 134.8742393 | N12: 129.6525571 | O12: 129.5728621 | P12: 133.9238122 | Q12: 127.4901733 | R12: 140.602503 | S12: 137.9099126 | T12: 141.9039251 | U12: 139.1417532 | V12: 138.4678524 | W12: 136.5032294 | X12: 137.4211687 | Y12: 139.9206828 | Z12: 134.488548 | AA12: 134.3909044 | AB12: 138.8882573 | AC12: 132.2015748 | AD12: 145.7825185 | AE12: 142.9751778 | AF12: 147.0999818 | AG12: 144.2211689 | AH12: 143.5073365 | AI12: 141.4561901 | AJ12: 142.3924049 | AK12: 144.9671263 | AL12: 139.3245389 | AM12: 139.2089468 | AN12: 143.8527024 | AO12: 136.9129762 | AP12: 150.962534 | AQ12: 148.0404431 | AR12: 152.2960386 | AS12: 149.3005847 | AT12: 148.5468207 | AU12: 146.4091508 | AV12: 147.363641 | AW12: 150.0135698 | AX12: 144.1605297 | AY12: 144.0269892 | AZ12: 148.8171475 | BA12: 141.6243776 | BB12: 156.1425495 | BC12: 153.1057083 | BD12: 157.4920953 | BE12: 154.3800005 | BF12: 153.5863048 | BG12: 151.3621115 | BH12: 152.3348771 | BI12: 155.0600133 | BJ12: 148.9965206 | BK12: 148.8450315 | BL12: 153.7815925 | BM12: 146.335779 | BN12: 161.322565 | BO12: 158.1709735 | BP12: 162.6881521 | BQ12: 159.4594163 | BR12: 158.6257889 | BS12: 156.3150722 | BT12: 157.3061132 | BU12: 160.1064568 | BV12: 153.8325115 | BW12: 153.6630739 | BX12: 158.7460376 | BY12: 151.0471805 | BZ12: 166.5025805 | CA12: 163.2362388 | CB12: 167.8842089 | CC12: 164.5388321 | CD12: 163.6652731 | CE12: 161.2680329 | CF12: 162.2773494 | CG12: 165.1529003 | CH12: 158.6685024 | CI12: 158.4811162 | CJ12: 163.7104827 | CK12: 155.7585819 | CL12: 171.6825959 | CM12: 168.301504 | CN12: 173.0802656 | CO12: 169.6182478 | CP12: 168.7047572 | CQ12: 166.2209936 | CR12: 167.2485855 | CS12: 170.1993438 | CT12: 163.5044933 | CU12: 163.2991586 | CV12: 168.6749278 | CW12: 160.4699833 | CX12: 176.8626114 | CY12: 173.3667692 | CZ12: 178.2763224 | DA12: 174.6976636 | DB12: 173.7442414 | DC12: 171.1739542 | DD12: 172.2198216 | DE12: 175.2457873 | DF12: 168.3404841 | DG12: 168.1172009 | DH12: 173.6393729 | DI12: 165.1813847 | DJ12: 182.0426269 | DK12: 178.4320344 | DL12: 183.4723792 | DM12: 179.7770794 | DN12: 178.7837255 | DO12: 176.1269149 | DP12: 177.1910577 | DQ12: 180.2922308 | DR12: 173.176475 | DS12: 172.9352433
B13: данные с прогнозом | C13: дисперсия | D13: 0.228324067 | E13: 0.04176033721 | F13: 0.4261249064 | G13: 0.2669509557 | H13: 0.47533017 | I13: 0.2009745675 | J13: 0.2729671397 | K13: 0.01475624581 | L13: 0.02947927985 | M13: 0.2050871455 | N13: 0.03360551876 | O13: 0.09791926669 | P13: 0.05476226841 | Q13: 0.4602835872 | R13: 0.06392146711 | S13: 0.05131638627 | T13: 0.04888260796 | U13: 0.141790964 | V13: 0.2696393608 | W13: 0.3972467919 | X13: 0.2907157885 | Y13: 0.2360727539 | Z13: 0.5138821994 | AA13: 0.5190790047 | AB13: 0.4390542393 | AC13: 0.7077069845 | AD13: 0.1371561748 | AE13: 0.306531011 | AF13: 0.05662535742 | AG13: 0.1868834122 | AH13: 0.2197109625 | AI13: 0.2431408466 | AJ13: 0.1996625605 | AK13: 0.07473783459 | AL13: 0.2076465132 | AM13: 0.2958961971 | AN13: 0.3329808098 | AO13: 0.7251686878 | AP13: 0.06385777931 | AQ13: 0.1953169778 | AR13: 0.00894597318 | AS13: 0.2084415342 | AT13: 0.2801448999 | AU13: 0.3622901169 | AV13: 0.3134302614 | AW13: 0.06794231419 | AX13: 0.1337018569 | AY13: 0.2347227282 | AZ13: 0.1333323285 | BA13: 0.3189321951 | BB13: 0.150493301 | BC13: 0.03542785332 | BD13: 0.03142411516 | BE13: 0.09722750101 | BF13: 0.03993384254 | BG13: 0.09758087003 | BH13: 0.09577814275 | BI13: 0.1441560667 | BJ13: 0.1457866257 | BK13: 0.1806704648 | BL13: 0.2137068996 | BM13: 0.331012329 | BN13: 0.3048402121 | BO13: 0.2794826016 | BP13: 0.3840858786 | BQ13: 0.0956739379 | BR13: 0.08639176365 | BS13: 0.02010204869 | BT13: 0.06417977923 | BU13: 0.457379761 | BV13: 0.09852548521 | BW13: 0.1349354411 | BX13: 0.07841292069 | BY13: 0.2805216771 | BZ13: 0.5592682516 | CA13: 0.4964002985 | CB13: 0.7679928739 | CC13: 0.6760483811 | CD13: 0.571252379 | CE13: 0.3977008023 | CF13: 0.4657575998 | CG13: 0.6757432527 | CH13: 0.4728741705 | CI13: 0.5912928199 | CJ13: 0.6726027363 | CK13: 0.1142287792 | CL13: 1.016348528 | CM13: 0.7666517588 | CN13: 0.9445086385 | CO13: 0.8597127977 | CP13: 0.6623859289 | CQ13: 0.521445057 | CR13: 0.7270130036 | CS13: 0.9244684349 | CT13: 0.492762166 | CU13: 0.6568036733 | CV13: 0.6871894842 | CW13: 0.1822296124 | CX13: 1.161137129 | CY13: 0.9580270809 | CZ13: 1.248495311 | DA13: 1.013899065 | DB13: 0.8153673671 | DC13: 0.4375571152 | DD13: 0.004967304923 | DE13: 0.7345326109 | DF13: 1.790019011 | DG13: 2.197387734 | DH13: 1.850372864 | DI13: 1.905610233 | DJ13: 1.490080754 | DK13: 1.71013873 | DL13: 1.222962086 | DM13: 0.8653447209 | DN13: 0.5460409173 | DO13: 0.3307540168 | DP13: 0.1646241393 | DQ13: 0.1363662636 | DR13: 0.4135738906 | DS13: 0.510819631 | DT13: 0.1465355451 | DU13: 0.6278807686 | DV13: 0.4425937514 | DW13: 0.4067139677 | DX13: 0.6769410703 | DY13: 0.1265993064 | DZ13: 0.2146644661 | EA13: 0.3223520578 | EB13: 0.4214452027 | EC13: 0.1265592667 | ED13: 0.3621996975 | EE13: 0.3230587958 | EF13: 0.6790617592 | EG13: 0.1324066085 | EH13: 0.756781309 | EI13: 0.4692529095 | EJ13: 0.6990780799 | EK13: 0.4811887962 | EL13: 0.4144653903 | EM13: 0.1434833091 | EN13: 0.0006950327145 | EO13: 0.01501645709 | EP13: 0.6742019287 | EQ13: 0.5718476659 | ER13: 0.06627729997 | ES13: 0.3190263025 | ET13: 0.5793183153 | EU13: 0.3019104794 | EV13: 0.4121362917 | EW13: 0.06099292139 | EX13: 0.1255155538 | EY13: 0.3049055642 | EZ13: 0.343034362 | FA13: 0.2618047676 | FB13: 0.5429877343 | FC13: 0.6323619253
B14: данные с прогнозом | C14: дисперсия - сигма | D14: 0.4294317863 | E14: 0.4728283155 | F14: 0.5501478368 | G14: 0.4803170008 | H14: 0.5367237272 | I14: 0.3857521466 | J14: 0.3475753824 | K14: 0.276408834 | L14: 0.240060189 | M14: 0.3122974561 | N14: 0.4524435998 | O14: 0.5343688729
B15: данные с прогнозом | C15: дисперсия - 3 сигмы | D15: 1.288295359 | E15: 1.418484947 | F15: 1.65044351 | G15: 1.440951002 | H15: 1.610171182 | I15: 1.15725644 | J15: 1.042726147 | K15: 0.8292265021 | L15: 0.7201805671 | M15: 0.9368923683 | N15: 1.357330799 | O15: 1.603106619
B16: данные с прогнозом | C16: верхняя граница прогноза | D16: 130.25 | E16: 124.2 | F16: 137.07 | G16: 134.29 | H16: 138.32 | I16: 135.22 | J16: 134.47 | K16: 132.38 | L16: 133.17 | M16: 135.81 | N16: 131.01 | O16: 131.18 | P16: 135.21 | Q16: 128.91 | R16: 142.25 | S16: 139.35 | T16: 143.51 | U16: 140.3 | V16: 139.51 | W16: 137.33 | X16: 138.14 | Y16: 140.86 | Z16: 135.85 | AA16: 135.99 | AB16: 140.18 | AC16: 133.62 | AD16: 147.43 | AE16: 144.42 | AF16: 148.71 | AG16: 145.38 | AH16: 144.55 | AI16: 142.29 | AJ16: 143.11 | AK16: 145.9 | AL16: 140.68 | AM16: 140.81 | AN16: 145.14 | AO16: 138.33 | AP16: 152.61 | AQ16: 149.48 | AR16: 153.91 | AS16: 150.46 | AT16: 149.59 | AU16: 147.24 | AV16: 148.08 | AW16: 150.95 | AX16: 145.52 | AY16: 145.63 | AZ16: 150.11 | BA16: 143.04 | BB16: 157.79 | BC16: 154.55 | BD16: 159.1 | BE16: 155.54 | BF16: 154.63 | BG16: 152.19 | BH16: 153.06 | BI16: 156 | BJ16: 150.35 | BK16: 150.45 | BL16: 155.07 | BM16: 147.75 | BN16: 162.97 | BO16: 159.61 | BP16: 164.3 | BQ16: 160.62 | BR16: 159.67 | BS16: 157.14 | BT16: 158.03 | BU16: 161.04 | BV16: 155.19 | BW16: 155.27 | BX16: 160.03 | BY16: 152.47 | BZ16: 168.15 | CA16: 164.68 | CB16: 169.49 | CC16: 165.7 | CD16: 164.71 | CE16: 162.1 | CF16: 163 | CG16: 166.09 | CH16: 160.03 | CI16: 160.08 | CJ16: 165 | CK16: 157.18 | CL16: 173.33 | CM16: 169.74 | CN16: 174.69 | CO16: 170.78 | CP16: 169.75 | CQ16: 167.05 | CR16: 167.97 | CS16: 171.14 | CT16: 164.86 | CU16: 164.9 | CV16: 169.96 | CW16: 161.89 | CX16: 178.51 | CY16: 174.81 | CZ16: 179.89 | DA16: 175.86 | DB16: 174.79 | DC16: 172 | DD16: 172.94 | DE16: 176.18 | DF16: 169.7 | DG16: 169.72 | DH16: 174.93 | DI16: 166.6 | DJ16: 183.69 | DK16: 179.87 | DL16: 185.08 | DM16: 180.93 | DN16: 179.83 | DO16: 176.96 | DP16: 177.91 | DQ16: 181.23 | DR16: 174.53 | DS16: 174.54
B17: данные с прогнозом | C17: нижняя граница прогноза | D17: 127.67 | E17: 121.36 | F17: 133.77 | G17: 131.4 | H17: 135.1 | I17: 132.91 | J17: 132.39 | K17: 130.72 | L17: 131.73 | M17: 133.94 | N17: 128.3 | O17: 127.97 | P17: 132.64 | Q17: 126.07 | R17: 138.95 | S17: 136.47 | T17: 140.29 | U17: 137.98 | V17: 137.43 | W17: 135.67 | X17: 136.7 | Y17: 138.98 | Z17: 133.13 | AA17: 132.79 | AB17: 137.6 | AC17: 130.78 | AD17: 144.13 | AE17: 141.53 | AF17: 145.49 | AG17: 143.06 | AH17: 142.46 | AI17: 140.63 | AJ17: 141.67 | AK17: 144.03 | AL17: 137.97 | AM17: 137.61 | AN17: 142.56 | AO17: 135.49 | AP17: 149.31 | AQ17: 146.6 | AR17: 150.69 | AS17: 148.14 | AT17: 147.5 | AU17: 145.58 | AV17: 146.64 | AW17: 149.08 | AX17: 142.8 | AY17: 142.42 | AZ17: 147.53 | BA17: 140.21 | BB17: 154.49 | BC17: 151.66 | BD17: 155.88 | BE17: 153.22 | BF17: 152.54 | BG17: 150.53 | BH17: 151.61 | BI17: 154.12 | BJ17: 147.64 | BK17: 147.24 | BL17: 152.49 | BM17: 144.92 | BN17: 159.67 | BO17: 156.73 | BP17: 161.08 | BQ17: 158.3 | BR17: 157.58 | BS17: 155.49 | BT17: 156.59 | BU17: 159.17 | BV17: 152.48 | BW17: 152.06 | BX17: 157.46 | BY17: 149.63 | BZ17: 164.85 | CA17: 161.8 | CB17: 166.27 | CC17: 163.38 | CD17: 162.62 | CE17: 160.44 | CF17: 161.56 | CG17: 164.22 | CH17: 157.31 | CI17: 156.88 | CJ17: 162.42 | CK17: 154.34 | CL17: 170.03 | CM17: 166.86 | CN17: 171.47 | CO17: 168.46 | CP17: 167.66 | CQ17: 165.39 | CR17: 166.53 | CS17: 169.26 | CT17: 162.15 | CU17: 161.7 | CV17: 167.39 | CW17: 159.05 | CX17: 175.21 | CY17: 171.93 | CZ17: 176.67 | DA17: 173.54 | DB17: 172.7 | DC17: 170.34 | DD17: 171.5 | DE17: 174.31 | DF17: 166.98 | DG17: 166.51 | DH17: 172.35 | DI17: 163.76 | DJ17: 180.39 | DK17: 176.99 | DL17: 181.86 | DM17: 178.62 | DN17: 177.74 | DO17: 175.3 | DP17: 176.47 | DQ17: 179.36 | DR17: 171.82 | DS17: 171.33
B18: данные с прогнозом | C18: значения модели | D18: 64.42158109 | E18: 61.53055343 | F18: 68.08228628 | G18: 66.99619939 | H18: 69.15913041 | I18: 68.02993224 | J18: 67.91507444 | K18: 67.16177984 | L18: 67.82386306 | M18: 69.27047378 | N18: 66.78467566 | O18: 66.93831143 | P18: 69.38602617 | Q18: 66.24195485 | R18: 73.26230177 | S18: 72.06146462 | T18: 74.35518717 | U18: 73.10934802 | V18: 72.95455858 | W18: 72.11474053 | X18: 72.79509918 | Y18: 74.31691728 | Z18: 71.62066654 | AA18: 71.75635379 | AB18: 74.35047125 | AC18: 70.95335627 | AD18: 78.44231725 | AE18: 77.12672985 | AF18: 79.55124393 | AG18: 78.1887638 | AH18: 77.99404271 | AI18: 77.06770121 | AJ18: 77.7663353 | AK18: 79.36336078 | AL18: 76.45665742 | AM18: 76.57439614 | AN18: 79.31491633 | AO18: 75.66475769 | AP18: 83.62233273 | AQ18: 82.19199508 | AR18: 84.74730069 | AS18: 83.26817958 | AT18: 83.03352685 | AU18: 82.0206619 | AV18: 82.73757142 | AW18: 84.40980428 | AX18: 81.2926483 | AY18: 81.3924385 | AZ18: 84.27936141 | BA18: 80.37615912 | BB18: 88.80234822 | BC18: 87.25726031 | BD18: 89.94335746 | BE18: 88.34759536 | BF18: 88.07301099 | BG18: 86.97362258 | BH18: 87.70880754 | BI18: 89.45624778 | BJ18: 86.12863918 | BK18: 86.21048086 | BL18: 89.2438065 | BM18: 85.08756054 | BN18: 93.9823637 | BO18: 92.32252554 | BP18: 95.13941422 | BQ18: 93.42701114 | BR18: 93.11249513 | BS18: 91.92658327 | BT18: 92.68004366 | BU18: 94.50269128 | BV18: 90.96463006 | BW18: 91.02852322 | BX18: 94.20825158 | BY18: 89.79896196 | BZ18: 99.16237918 | CA18: 97.38779077 | CB18: 100.335471 | CC18: 98.50642692 | CD18: 98.15197927 | CE18: 96.87954395 | CF18: 97.65127978 | CG18: 99.54913478 | CH18: 95.80062094 | CI18: 95.84656557 | CJ18: 99.17269666 | CK18: 94.51036339 | CL18: 104.3423947 | CM18: 102.453056 | CN18: 105.5315277 | CO18: 103.5858427 | CP18: 103.1914634 | CQ18: 101.8325046 | CR18: 102.6225159 | CS18: 104.5955783 | CT18: 100.6366118 | CU18: 100.6646079 | CV18: 104.1371417 | CW18: 99.22176481 | CX18: 109.5224101 | CY18: 107.5183212 | CZ18: 110.7275845 | DA18: 108.6652585 | DB18: 108.2309475 | DC18: 106.7854653 | DD18: 107.593752 | DE18: 109.6420218 | DF18: 105.4726027 | DG18: 105.4826503 | DH18: 109.1015868 | DI18: 103.9331662 | DJ18: 114.7024256 | DK18: 112.5835865 | DL18: 115.9236413 | DM18: 113.7446743 | DN18: 113.2704317 | DO18: 111.738426 | DP18: 112.5649881 | DQ18: 114.6884653 | DR18: 110.3085936 | DS18: 110.3006926 | DT18: 114.0660319 | DU18: 108.6445677 | DV18: 119.8824411 | DW18: 117.6488517 | DX18: 121.119698 | DY18: 118.82409 | DZ18: 118.3099158 | EA18: 116.6913867 | EB18: 117.5362243 | EC18: 119.7349088 | ED18: 115.1445845 | EE18: 115.118735 | EF18: 119.030477 | EG18: 113.3559691 | EH18: 125.0624566 | EI18: 122.7141169 | EJ18: 126.3157548 | EK18: 123.9035058 | EL18: 123.3494 | EM18: 121.6443474 | EN18: 122.5074604 | EO18: 124.7813523 | EP18: 119.9805753 | EQ18: 119.9367774 | ER18: 123.9949221 | ES18: 118.0673705 | ET18: 130.2424721 | EU18: 127.7793821 | EV18: 131.5118115 | EW18: 128.9829216 | EX18: 128.3888841 | EY18: 126.5973081 | EZ18: 127.4786965 | FA18: 129.8277958 | FB18: 124.8165662 | FC18: 124.7548197
B19: данные с прогнозом | C19: ошибка модели | D19: 3.15341891 | E19: 4.137446575 | F19: 2.786713717 | G19: 2.306800609 | H19: 3.153869588 | I19: 1.283067758 | J19: 2.709925563 | K19: 0.6642201603 | L19: 0.6011369412 | M19: 1.756526219 | N19: 1.686324337 | O19: 1.147688572 | P19: -0.3470261715 | Q19: -1.835954848 | R19: -1.914301766 | S19: -1.73246462 | T19: -3.580187172 | U19: -3.075348022 | V19: -4.096558576 | W19: -4.429740525 | X19: -3.368099179 | Y19: -3.79391728 | Z19: -4.140666544 | AA19: -3.925353786 | AB19: -5.107471253 | AC19: -4.639356271 | AD19: -4.609317249 | AE19: -4.98672985 | AF19: -3.884243933 | AG19: -3.727763802 | AH19: -3.526042715 | AI19: -2.475701211 | AJ19: -2.2173353 | AK19: -1.84336078 | AL19: -0.1756574238 | AM19: -0.9763961438 | AN19: -3.762916334 | AO19: -4.579757694 | AP19: -2.298332733 | AQ19: -3.67899508 | AR19: -3.498300694 | AS19: -4.087179581 | AT19: -4.329526853 | AU19: -3.923661897 | AV19: -3.616571421 | AW19: -1.816804279 | AX19: 0.8973516961 | AY19: -0.04443850148 | AZ19: -1.253361415 | BA19: 0.7548408827 | BB19: -1.411348216 | BC19: -1.76526031 | BD19: -3.203357455 | BE19: -2.793595361 | BF19: -1.390010992 | BG19: -0.592622583 | BH19: 1.495192458 | BI19: 0.7657522214 | BJ19: 4.529360816 | BK19: 5.297519141 | BL19: 3.091193504 | BM19: 0.8814394597 | BN19: 0.3186363006 | BO19: 2.07847446 | BP19: 0.9795857841 | BQ19: -0.4830111402 | BR19: -2.019495131 | BS19: 0.4074167312 | BT19: 1.118956338 | BU19: 4.607308722 | BV19: 4.093369936 | BW19: 4.898476783 | BX19: 1.430748423 | BY19: 1.787038037 | BZ19: 3.294620817 | CA19: 4.70220923 | CB19: 5.551529023 | CC19: 6.65157308 | CD19: 6.11702073 | CE19: 5.644456045 | CF19: 6.135720217 | CG19: 7.267865222 | CH19: 8.906379056 | CI19: 10.75043443 | CJ19: 8.852303342 | CK19: 6.978636614 | CL19: 8.793605334 | CM19: 7.989944 | CN19: 7.541472262 | CO19: 8.847157301 | CP19: 7.200536592 | CQ19: 7.22049536 | CR19: 9.405484096 | CS19: 10.30642172 | CT19: 9.306388175 | CU19: 11.73639207 | CV19: 9.057858261 | CW19: 8.102235191 | CX19: 10.40458985 | CY19: 10.29567877 | CZ19: 11.1184155 | DA19: 10.67574152 | DB19: 9.054052453 | DC19: 6.211534674 | DD19: 0.4332479756 | DE19: -10.40602178 | DF19: -18.9616027 | DG19: -23.62765029 | DH19: -22.51058682 | DI19: -17.61416623 | DJ19: -22.79442563 | DK19: -22.99958646 | DL19: -19.85864126 | DM19: -12.81167426 | DN19: -7.946431686 | DO19: -3.318426012 | DP19: -1.660988145 | DQ19: 0.3785347242 | DR19: -1.672593585 | DS19: -2.459692648 | DT19: -1.274031901 | DU19: -1.429567655 | DV19: 1.075558884 | DW19: 3.278148311 | DX19: 3.58730198 | DY19: -0.553090038 | DZ19: -3.871915825 | EA19: -3.178386698 | EB19: -4.841224266 | EC19: -2.952908775 | ED19: -0.8805844651 | EE19: 0.04826499454 | EF19: 9.028523018 | EG19: 5.016030922 | EH19: 4.7955434 | EI19: 3.979883081 | EJ19: 3.655245219 | EK19: 3.770494182 | EL19: 3.909600037 | EM19: 2.656652616 | EN19: 0.4315396136 | EO19: -1.248352275 | EP19: -4.612575345 | EQ19: -2.878777363 | ER19: -0.226922063 | ES19: 2.969629499 | ET19: 2.394527917 | EU19: 1.819617851 | EV19: -0.1248115421 | EW19: -1.551921597 | EX19: 0.261115898 | EY19: -2.89030807 | EZ19: -3.830696507 | FA19: -4.752795774 | FB19: -2.826566225 | FC19: -3.461819721
B20: данные с прогнозом | C20: среднеквадратичное отклонение | D20: 0.002396075929 | E20: 0.004521506456 | F20: 0.001675392041 | G20: 0.001185549747 | H20: 0.002079641211 | I20: 0.0003557124833 | J20: 0.001592144061 | K20: 9.780920135e-05 | L20: 7.855643921e-05 | M20: 0.0006430029382 | N20: 0.0006375710266 | O20: 0.0002939670192 | P20: 2.501384341e-05 | Q20: 0.0007681706543 | R20: 0.0006827468128 | S20: 0.0005779930008 | T20: 0.002318402957 | U20: 0.00176946802 | V20: 0.003153068967 | W20: 0.003773188355 | X20: 0.002140747566 | Y20: 0.002606155604 | Z20: 0.003342441367 | AA20: 0.002992518786 | AB20: 0.004718939514 | AC20: 0.004275329214 | AD20: 0.003452807547 | AE20: 0.004180438583 | AF20: 0.002384070216 | AG20: 0.002273045243 | AH20: 0.002043865318 | AI20: 0.00103193335 | AJ20: 0.0008129792762 | AK20: 0.0005394865044 | AL20: 5.278401276e-06 | AM20: 0.000162586675 | AN20: 0.002250812837 | AO20: 0.003663512778 | AP20: 0.0007554074222 | AQ20: 0.002003546237 | AR20: 0.001703972274 | AS20: 0.00240929123 | AT20: 0.002718778991 | AU20: 0.002288424637 | AV20: 0.001910682624 | AW20: 0.000463266079 | AX20: 0.0001218492421 | AY20: 2.98092254e-07 | AZ20: 0.0002211618268 | BA20: 8.819751109e-05 | BB20: 0.0002525919218 | BC20: 0.0004092741992 | BD20: 0.001268447849 | BE20: 0.0009998561789 | BF20: 0.000249086839 | BG20: 4.642813891e-05 | BH20: 0.0002906081452 | BI20: 7.327488997e-05 | BJ20: 0.002765531861 | BK20: 0.003775938691 | BL20: 0.001199765067 | BM20: 0.0001073131227 | BN20: 1.149470355e-05 | BO20: 0.0005068436759 | BP20: 0.0001060141905 | BQ20: 2.672817981e-05 | BR20: 0.0004704025763 | BS20: 1.964244216e-05 | BT20: 0.0001457651895 | BU20: 0.002376874627 | BV20: 0.00202496199 | BW20: 0.002895790332 | BX20: 0.0002306474537 | BY20: 0.0003960271497 | BZ20: 0.001103867635 | CA20: 0.002331282326 | CB20: 0.003061372961 | CC20: 0.004559524999 | CD20: 0.003884022894 | CE20: 0.003394532877 | CF20: 0.003947982484 | CG20: 0.005330141648 | CH20: 0.008643023652 | CI20: 0.01258052942 | CJ20: 0.007967614805 | CK20: 0.005452332133 | CL20: 0.007102517968 | CM20: 0.006081877053 | CN20: 0.005106787956 | CO20: 0.007294687488 | CP20: 0.004869026975 | CQ20: 0.005027604833 | CR20: 0.00839995562 | CS20: 0.009709327887 | CT20: 0.008551657781 | CU20: 0.01359300904 | CV20: 0.007565536558 | CW20: 0.006668003155 | CX20: 0.009024932146 | CY20: 0.009169486561 | CZ20: 0.01008263737 | DA20: 0.009651941158 | DB20: 0.006998147486 | DC20: 0.003383557325 | DD20: 1.621432894e-05 | DE20: 0.009007730628 | DF20: 0.03231995589 | DG20: 0.050174032 | DH20: 0.04257076934 | DI20: 0.02872207854 | DJ20: 0.03949227047 | DK20: 0.04173398886 | DL20: 0.02934641349 | DM20: 0.01268672814 | DN20: 0.004921655339 | DO20: 0.0008819808978 | DP20: 0.0002177340775 | DQ20: 1.089361362e-05 | DR20: 0.0002299122749 | DS20: 0.000497284825 | DT20: 0.0001247521209 | DU20: 0.000173138398 | DV20: 8.049283581e-05 | DW20: 0.0007763933575 | DX20: 0.000877215538 | DY20: 2.166619653e-05 | DZ20: 0.001071049453 | EA20: 0.000741883765 | EB20: 0.00169655105 | EC20: 0.0006082169031 | ED20: 5.848641552e-05 | EE20: 1.757812326e-07 | EF20: 0.005753300674 | EG20: 0.001958085368 | EH20: 0.001470353437 | EI20: 0.001051844583 | EJ20: 0.0008373711469 | EK20: 0.0009260391774 | EL20: 0.001004593995 | EM20: 0.0004769640804 | EN20: 1.240841365e-05 | EO20: 0.00010008637 | EP20: 0.00147796812 | EQ20: 0.0005761179508 | ER20: 3.349235197e-06 | ES20: 0.0006326226763 | ET20: 0.0003380138906 | EU20: 0.0002027863927 | EV20: 9.006996172e-07 | EW20: 0.0001447688532 | EX20: 4.136297627e-06 | EY20: 0.0005212419114 | EZ20: 0.0009029844327 | FA20: 0.001340179403 | FB20: 0.0005128305268 | FC20: 0.0007700062129 | FD20: =AVERAGE(D20:FC20) -> 0.004022126001 | FE20: 1

Sheet Линейный тренд
D4: 67.575 | E4: 65.668 | F4: 70.869 | G4: 69.303 | H4: 72.313 | I4: 69.313 | J4: 70.625 | K4: 67.826 | L4: 68.425 | M4: 71.027 | N4: 68.471 | O4: 68.086 | P4: 69.039 | Q4: 64.406 | R4: 71.348 | S4: 70.329 | T4: 70.775 | U4: 70.034 | V4: 68.858 | W4: 67.685 | X4: 69.427 | Y4: 70.523 | Z4: 67.48 | AA4: 67.831 | AB4: 69.243 | AC4: 66.314 | AD4: 73.833 | AE4: 72.14 | AF4: 75.667 | AG4: 74.461 | AH4: 74.468 | AI4: 74.592 | AJ4: 75.549 | AK4: 77.52 | AL4: 76.281 | AM4: 75.598 | AN4: 75.552 | AO4: 71.085 | AP4: 81.324 | AQ4: 78.513 | AR4: 81.249 | AS4: 79.181 | AT4: 78.704 | AU4: 78.097 | AV4: 79.121 | AW4: 82.593 | AX4: 82.19 | AY4: 81.348 | AZ4: 83.026 | BA4: 81.131 | BB4: 87.391 | BC4: 85.492 | BD4: 86.74 | BE4: 85.554 | BF4: 86.683 | BG4: 86.381 | BH4: 89.204 | BI4: 90.222 | BJ4: 90.658 | BK4: 91.508 | BL4: 92.335 | BM4: 85.969 | BN4: 94.301 | BO4: 94.401 | BP4: 96.119 | BQ4: 92.944 | BR4: 91.093 | BS4: 92.334 | BT4: 93.799 | BU4: 99.11 | BV4: 95.058 | BW4: 95.927 | BX4: 95.639 | BY4: 91.586 | BZ4: 102.457 | CA4: 102.09 | CB4: 105.887 | CC4: 105.158 | CD4: 104.269 | CE4: 102.524 | CF4: 103.787 | CG4: 106.817 | CH4: 104.707 | CI4: 106.597 | CJ4: 108.025 | CK4: 101.489 | CL4: 113.136 | CM4: 110.443 | CN4: 113.073 | CO4: 112.433 | CP4: 110.392 | CQ4: 109.053 | CR4: 112.028 | CS4: 114.902 | CT4: 109.943 | CU4: 112.401 | CV4: 113.195 | CW4: 107.324 | CX4: 119.927 | CY4: 117.814 | CZ4: 121.846 | DA4: 119.341 | DB4: 117.285 | DC4: 112.997 | DD4: 108.027 | DE4: 99.236 | DF4: 86.511 | DG4: 81.855 | DH4: 86.591 | DI4: 86.319 | DJ4: 91.908 | DK4: 89.584 | DL4: 96.065 | DM4: 100.933 | DN4: 105.324 | DO4: 108.42 | DP4: 110.904 | DQ4: 115.067 | DR4: 108.636 | DS4: 107.841 | DT4: 112.792 | DU4: 107.215 | DV4: 120.958 | DW4: 120.927 | DX4: 124.707 | DY4: 118.271 | DZ4: 114.438 | EA4: 113.513 | EB4: 112.695 | EC4: 116.782 | ED4: 114.264 | EE4: 115.167 | EF4: 128.059 | EG4: 118.372 | EH4: 129.858 | EI4: 126.694 | EJ4: 129.971 | EK4: 127.674 | EL4: 127.259 | EM4: 124.301 | EN4: 122.939 | EO4: 123.533 | EP4: 115.368 | EQ4: 117.058 | ER4: 123.768 | ES4: 121.037 | ET4: 132.637 | EU4: 129.599 | EV4: 131.387 | EW4: 127.431 | EX4: 128.65 | EY4: 123.707 | EZ4: 123.648 | FA4: 125.075 | FB4: 121.99 | FC4: 121.293
C6: данные | D6: 67.575 | E6: 65.668 | F6: 70.869 | G6: 69.303 | H6: 72.313 | I6: 69.313 | J6: 70.625 | K6: 67.826 | L6: 68.425 | M6: 71.027 | N6: 68.471 | O6: 68.086 | P6: 69.039 | Q6: 64.406 | R6: 71.348 | S6: 70.329 | T6: 70.775 | U6: 70.034 | V6: 68.858 | W6: 67.685 | X6: 69.427 | Y6: 70.523 | Z6: 67.48 | AA6: 67.831 | AB6: 69.243 | AC6: 66.314 | AD6: 73.833 | AE6: 72.14 | AF6: 75.667 | AG6: 74.461 | AH6: 74.468 | AI6: 74.592 | AJ6: 75.549 | AK6: 77.52 | AL6: 76.281 | AM6: 75.598 | AN6: 75.552 | AO6: 71.085 | AP6: 81.324 | AQ6: 78.513 | AR6: 81.249 | AS6: 79.181 | AT6: 78.704 | AU6: 78.097 | AV6: 79.121 | AW6: 82.593 | AX6: 82.19 | AY6: 81.348 | AZ6: 83.026 | BA6: 81.131 | BB6: 87.391 | BC6: 85.492 | BD6: 86.74 | BE6: 85.554 | BF6: 86.683 | BG6: 86.381 | BH6: 89.204 | BI6: 90.222 | BJ6: 90.658 | BK6: 91.508 | BL6: 92.335 | BM6: 85.969 | BN6: 94.301 | BO6: 94.401 | BP6: 96.119 | BQ6: 92.944 | BR6: 91.093 | BS6: 92.334 | BT6: 93.799 | BU6: 99.11 | BV6: 95.058 | BW6: 95.927 | BX6: 95.639 | BY6: 91.586 | BZ6: 102.457 | CA6: 102.09 | CB6: 105.887 | CC6: 105.158 | CD6: 104.269 | CE6: 102.524 | CF6: 103.787 | CG6: 106.817 | CH6: 104.707 | CI6: 106.597 | CJ6: 108.025 | CK6: 101.489 | CL6: 113.136 | CM6: 110.443 | CN6: 113.073 | CO6: 112.433 | CP6: 110.392 | CQ6: 109.053 | CR6: 112.028 | CS6: 114.902 | CT6: 109.943 | CU6: 112.401 | CV6: 113.195 | CW6: 107.324 | CX6: 119.927 | CY6: 117.814 | CZ6: 121.846 | DA6: 119.341 | DB6: 117.285 | DC6: 112.997 | DD6: 108.027 | DE6: 99.236 | DF6: 86.511 | DG6: 81.855 | DH6: 86.591 | DI6: 86.319 | DJ6: 91.908 | DK6: 89.584 | DL6: 96.065 | DM6: 100.933 | DN6: 105.324 | DO6: 108.42 | DP6: 110.904 | DQ6: 115.067 | DR6: 108.636 | DS6: 107.841 | DT6: 112.792 | DU6: 107.215 | DV6: 120.958 | DW6: 120.927 | DX6: 124.707 | DY6: 118.271 | DZ6: 114.438 | EA6: 113.513 | EB6: 112.695 | EC6: 116.782 | ED6: 114.264 | EE6: 115.167 | EF6: 128.059 | EG6: 118.372 | EH6: 129.858 | EI6: 126.694 | EJ6: 129.971 | EK6: 127.674 | EL6: 127.259 | EM6: 124.301 | EN6: 122.939 | EO6: 123.533 | EP6: 115.368 | EQ6: 117.058 | ER6: 123.768 | ES6: 121.037 | ET6: 132.637 | EU6: 129.599 | EV6: 131.387 | EW6: 127.431 | EX6: 128.65 | EY6: 123.707 | EZ6: 123.648 | FA6: 125.075 | FB6: 121.99 | FC6: 121.293 | JT6: Точность
C7: данные с прогнозом | D7: 67.575 | E7: 65.668 | F7: 70.869 | G7: 69.303 | H7: 72.313 | I7: 69.313 | J7: 70.625 | K7: 67.826 | L7: 68.425 | M7: 71.027 | N7: 68.471 | O7: 68.086 | P7: 69.039 | Q7: 64.406 | R7: 71.348 | S7: 70.329 | T7: 70.775 | U7: 70.034 | V7: 68.858 | W7: 67.685 | X7: 69.427 | Y7: 70.523 | Z7: 67.48 | AA7: 67.831 | AB7: 69.243 | AC7: 66.314 | AD7: 73.833 | AE7: 72.14 | AF7: 75.667 | AG7: 74.461 | AH7: 74.468 | AI7: 74.592 | AJ7: 75.549 | AK7: 77.52 | AL7: 76.281 | AM7: 75.598 | AN7: 75.552 | AO7: 71.085 | AP7: 81.324 | AQ7: 78.513 | AR7: 81.249 | AS7: 79.181 | AT7: 78.704 | AU7: 78.097 | AV7: 79.121 | AW7: 82.593 | AX7: 82.19 | AY7: 81.348 | AZ7: 83.026 | BA7: 81.131 | BB7: 87.391 | BC7: 85.492 | BD7: 86.74 | BE7: 85.554 | BF7: 86.683 | BG7: 86.381 | BH7: 89.204 | BI7: 90.222 | BJ7: 90.658 | BK7: 91.508 | BL7: 92.335 | BM7: 85.969 | BN7: 94.301 | BO7: 94.401 | BP7: 96.119 | BQ7: 92.944 | BR7: 91.093 | BS7: 92.334 | BT7: 93.799 | BU7: 99.11 | BV7: 95.058 | BW7: 95.927 | BX7: 95.639 | BY7: 91.586 | BZ7: 102.457 | CA7: 102.09 | CB7: 105.887 | CC7: 105.158 | CD7: 104.269 | CE7: 102.524 | CF7: 103.787 | CG7: 106.817 | CH7: 104.707 | CI7: 106.597 | CJ7: 108.025 | CK7: 101.489 | CL7: 113.136 | CM7: 110.443 | CN7: 113.073 | CO7: 112.433 | CP7: 110.392 | CQ7: 109.053 | CR7: 112.028 | CS7: 114.902 | CT7: 109.943 | CU7: 112.401 | CV7: 113.195 | CW7: 107.324 | CX7: 119.927 | CY7: 117.814 | CZ7: 121.846 | DA7: 119.341 | DB7: 117.285 | DC7: 112.997 | DD7: 108.027 | DE7: 99.236 | DF7: 86.511 | DG7: 81.855 | DH7: 86.591 | DI7: 86.319 | DJ7: 91.908 | DK7: 89.584 | DL7: 96.065 | DM7: 100.933 | DN7: 105.324 | DO7: 108.42 | DP7: 110.904 | DQ7: 115.067 | DR7: 108.636 | DS7: 107.841 | DT7: 112.792 | DU7: 107.215 | DV7: 120.958 | DW7: 120.927 | DX7: 124.707 | DY7: 118.271 | DZ7: 114.438 | EA7: 113.513 | EB7: 112.695 | EC7: 116.782 | ED7: 114.264 | EE7: 115.167 | EF7: 128.059 | EG7: 118.372 | EH7: 129.858 | EI7: 126.694 | EJ7: 129.971 | EK7: 127.674 | EL7: 127.259 | EM7: 124.301 | EN7: 122.939 | EO7: 123.533 | EP7: 115.368 | EQ7: 117.058 | ER7: 123.768 | ES7: 121.037 | ET7: 132.637 | EU7: 129.599 | EV7: 131.387 | EW7: 127.431 | EX7: 128.65 | EY7: 123.707 | EZ7: 123.648 | FA7: 125.075 | FB7: 121.99 | FC7: 121.293 | FD7: 128.96 | FE7: 122.78 | FF7: 135.42 | FG7: 132.84 | FH7: 136.71 | FI7: 134.06 | FJ7: 133.43 | FK7: 131.55 | FL7: 132.45 | FM7: 134.87 | FN7: 129.65 | FO7: 129.57 | FP7: 133.92 | FQ7: 127.49 | FR7: 140.6 | FS7: 137.91 | FT7: 141.9 | FU7: 139.14 | FV7: 138.47 | FW7: 136.5 | FX7: 137.42 | FY7: 139.92 | FZ7: 134.49 | GA7: 134.39 | GB7: 138.89 | GC7: 132.2 | GD7: 145.78 | GE7: 142.98 | GF7: 147.1 | GG7: 144.22 | GH7: 143.51 | GI7: 141.46 | GJ7: 142.39 | GK7: 144.97 | GL7: 139.32 | GM7: 139.21 | GN7: 143.85 | GO7: 136.91 | GP7: 150.96 | GQ7: 148.04 | GR7: 152.3 | GS7: 149.3 | GT7: 148.55 | GU7: 146.41 | GV7: 147.36 | GW7: 150.01 | GX7: 144.16 | GY7: 144.03 | GZ7: 148.82 | HA7: 141.62 | HB7: 156.14 | HC7: 153.11 | HD7: 157.49 | HE7: 154.38 | HF7: 153.59 | HG7: 151.36 | HH7: 152.33 | HI7: 155.06 | HJ7: 149 | HK7: 148.85 | HL7: 153.78 | HM7: 146.34 | HN7: 161.32 | HO7: 158.17 | HP7: 162.69 | HQ7: 159.46 | HR7: 158.63 | HS7: 156.32 | HT7: 157.31 | HU7: 160.11 | HV7: 153.83 | HW7: 153.66 | HX7: 158.75 | HY7: 151.05 | HZ7: 166.5 | IA7: 163.24 | IB7: 167.88 | IC7: 164.54 | ID7: 163.67 | IE7: 161.27 | IF7: 162.28 | IG7: 165.15 | IH7: 158.67 | II7: 158.48 | IJ7: 163.71 | IK7: 155.76 | IL7: 171.68 | IM7: 168.3 | IN7: 173.08 | IO7: 169.62 | IP7: 168.7 | IQ7: 166.22 | IR7: 167.25 | IS7: 170.2 | IT7: 163.5 | IU7: 163.3 | IV7: 168.67 | IW7: 160.47 | IX7: 176.86 | IY7: 173.37 | IZ7: 178.28 | JA7: 174.7 | JB7: 173.74 | JC7: 171.17 | JD7: 172.22 | JE7: 175.25 | JF7: 168.34 | JG7: 168.12 | JH7: 173.64 | JI7: 165.18 | JJ7: 182.04 | JK7: 178.43 | JL7: 183.47 | JM7: 179.78 | JN7: 178.78 | JO7: 176.13 | JP7: 177.19 | JQ7: 180.29 | JR7: 173.18 | JS7: 172.94 | JT7: 1 | JU7: =SUM(FD7:JS7) -> 18516.76 | JV7: =SUM(FD7:JS7)/SUM(AN7:FC7) -> 1.471784796

Sheet ForHV
D3: данные за анализируемые периоды | E3: 67.575 | F3: 65.668 | G3: 70.869 | H3: 69.303 | I3: 72.313 | J3: 69.313 | K3: 70.625 | L3: 67.826 | M3: 68.425 | N3: 71.027 | O3: 68.471 | P3: 68.086 | Q3: 69.039 | R3: 64.406 | S3: 71.348 | T3: 70.329 | U3: 70.775 | V3: 70.034 | W3: 68.858 | X3: 67.685 | Y3: 69.427 | Z3: 70.523 | AA3: 67.48 | AB3: 67.831 | AC3: 69.243 | AD3: 66.314 | AE3: 73.833 | AF3: 72.14 | AG3: 75.667 | AH3: 74.461 | AI3: 74.468 | AJ3: 74.592 | AK3: 75.549 | AL3: 77.52 | AM3: 76.281 | AN3: 75.598 | AO3: 75.552 | AP3: 71.085 | AQ3: 81.324 | AR3: 78.513 | AS3: 81.249 | AT3: 79.181 | AU3: 78.704 | AV3: 78.097 | AW3: 79.121 | AX3: 82.593 | AY3: 82.19 | AZ3: 81.348 | BA3: 83.026 | BB3: 81.131 | BC3: 87.391 | BD3: 85.492 | BE3: 86.74 | BF3: 85.554 | BG3: 86.683 | BH3: 86.381 | BI3: 89.204 | BJ3: 90.222 | BK3: 90.658 | BL3: 91.508 | BM3: 92.335 | BN3: 85.969 | BO3: 94.301 | BP3: 94.401 | BQ3: 96.119 | BR3: 92.944 | BS3: 91.093 | BT3: 92.334 | BU3: 93.799 | BV3: 99.11 | BW3: 95.058 | BX3: 95.927 | BY3: 95.639 | BZ3: 91.586 | CA3: 102.457 | CB3: 102.09 | CC3: 105.887 | CD3: 105.158 | CE3: 104.269 | CF3: 102.524 | CG3: 103.787 | CH3: 106.817 | CI3: 104.707 | CJ3: 106.597 | CK3: 108.025 | CL3: 101.489 | CM3: 113.136 | CN3: 110.443 | CO3: 113.073 | CP3: 112.433 | CQ3: 110.392 | CR3: 109.053 | CS3: 112.028 | CT3: 114.902 | CU3: 109.943 | CV3: 112.401 | CW3: 113.195 | CX3: 107.324 | CY3: 119.927 | CZ3: 117.814 | DA3: 121.846 | DB3: 119.341 | DC3: 117.285 | DD3: 112.997 | DE3: 108.027 | DF3: 99.236 | DG3: 86.511 | DH3: 81.855 | DI3: 86.591 | DJ3: 86.319 | DK3: 91.908 | DL3: 89.584 | DM3: 96.065 | DN3: 100.933 | DO3: 105.324 | DP3: 108.42 | DQ3: 110.904 | DR3: 115.067 | DS3: 108.636 | DT3: 107.841 | DU3: 112.792 | DV3: 107.215 | DW3: 120.958 | DX3: 120.927 | DY3: 124.707 | DZ3: 118.271 | EA3: 114.438 | EB3: 113.513 | EC3: 112.695 | ED3: 116.782 | EE3: 114.264 | EF3: 115.167 | EG3: 128.059 | EH3: 118.372 | EI3: 129.858 | EJ3: 126.694 | EK3: 129.971 | EL3: 127.674 | EM3: 127.259 | EN3: 124.301 | EO3: 122.939 | EP3: 123.533 | EQ3: 115.368 | ER3: 117.058 | ES3: 123.768 | ET3: 121.037 | EU3: 132.637 | EV3: 129.599 | EW3: 131.387 | EX3: 127.431 | EY3: 128.65 | EZ3: 123.707 | FA3: 123.648 | FB3: 125.075 | FC3: 121.99 | FD3: 121.293
D4: Коэффициенты тренда
D5: Cтандартная ошибка для коэффициентов
D6: сложившейся тренд | E6: 0 | F6: -1.22048 | G6: 2.6451712 | H6: 0.723151872 | I6: 1.802330808 | J6: -1.055325122 | K6: -0.1117682298 | L6: -1.642885184 | M6: -0.5143020573 | N6: 1.705847885 | O6: -0.5777047731 | P6: -0.9110842499 | Q6: 0.2152537747 | R6: -2.662361036 | S6: 2.908907065 | T6: 1.509300164 | U6: 0.5488666786 | V6: -0.4687346927 | W6: -1.124904764 | X6: -1.286919729 | Y6: 0.6191859044 | Z6: 1.305568052 | AA6: -1.340239072 | AB6: -0.7870074906 | AC6: 0.5951666629 | AD6: -0.894459316 | AE6: 3.140003785 | AF6: 1.724280936 | AG6: 2.546036013 | AH6: 0.3156701064 | AI6: -0.3724934659 | AJ6: -0.2560052475 | AK6: 0.2724371852 | AL6: 1.624316954 | AM6: 0.5099737535 | AN6: -0.9076186904 | AO6: -0.8952769775 | AP6: -2.278980294 | AQ6: 3.579176439 | AR6: 2.339090496 | AS6: 1.99967486 | AT6: -0.2762140985 | AU6: -1.104187385 | AV6: -1.120863517 | AW6: -0.08731133028 | AX6: 2.4555957 | AY6: 1.933117316 | AZ6: -0.3731719266 | BA6: 0.01151949044 | BB6: 0.07187712707 | BC6: 1.038178541 | BD6: 2.084317014 | BE6: 1.263360518 | BF6: 0.2096181042 | BG6: 0.1422648651 | BH6: -0.4490148904 | BI6: 1.0060876 | BJ6: 1.185285289 | BK6: 2.023142635 | BL6: 1.213693427 | BM6: -0.07772581347 | BN6: -3.022347721 | BO6: 0.310337018 | BP6: 3.791713085 | BQ6: 2.862439745 | BR6: -0.4241940436 | BS6: -2.617599166 | BT6: -0.8277059824 | BU6: 0.1900976434 | BV6: 3.676213177 | BW6: 0.7206784118 | BX6: 0.1944615666 | BY6: -1.079972954 | BZ6: -1.61085717 | CA6: 1.844134657 | CB6: 4.304759997 | CC6: 4.729602182 | CD6: 2.51173438 | CE6: -0.9526587734 | CF6: -2.970859106 | CG6: -1.454918716 | CH6: 1.427330156 | CI6: 1.989533543 | CJ6: 1.69147523 | CK6: 0.6037415367 | CL6: -2.475835314 | CM6: 0.5226817583 | CN6: 2.718877839 | CO6: 3.641330237 | CP6: 2.697538008 | CQ6: -1.279206244 | CR6: -3.161164136 | CS6: -0.9191638518 | CT6: 1.470377846 | CU6: 0.5294947463 | CV6: 1.323025998 | CW6: 0.3369476458 | CX6: -1.776769391 | CY6: 0.4855224751 | CZ6: 3.248116614 | DA6: 5.04412291 | DB6: 2.517370367 | DC6: -1.330832573 | DD6: -5.380912927 | DE6: -7.691157821 | DF6: -9.144431811 | DG6: -9.138455759 | DH6: -6.669569593 | DI6: 0.6945706923 | DJ6: 3.313919998 | DK6: -0.1894407908 | DL6: 0.7476690427 | DM6: 5.256714339 | DN6: 7.992710973 | DO6: 6.13079434 | DP6: 2.642142545 | DQ6: -0.1243458936 | DR6: 1.462372769 | DS6: -0.3889377842 | DT6: -1.884011082 | DU6: 0.8535098964 | DV6: 0.246449645 | DW6: 2.623102921 | DX6: 4.628256293 | DY6: 4.812944894 | DZ6: 0.4133442669 | EA6: -2.84561757 | EB6: -3.380871501 | EC6: -3.971760443 | ED6: -0.0736153943 | EE6: 2.535229801 | EF6: 1.064595546 | EG6: 6.271861515 | EH6: 0.8575684568 | EI6: -0.4587312096 | EJ6: 1.09411904 | EK6: 3.377321859 | EL6: 3.748392607 | EM6: 1.467037078 | EN6: -3.443212917 | EO6: -5.408678319 | EP6: -3.713217571 | EQ6: -2.520683078 | ER6: -0.04518244536 | ES6: 1.965856044 | ET6: 4.381585337 | EU6: 1.796384715 | EV6: 1.454641372 | EW6: 2.111082479 | EX6: 2.141727847 | EY6: 2.225871494 | EZ6: -3.700541486 | FA6: -5.215451983 | FB6: -3.491164673 | FC6: 0.9663439541 | FD6: 0.1386171449
D7: Экспоненциальный ряд | E7: 67.575 | F7: 66.0494 | G7: 69.660984 | H7: 69.90363104 | I7: 71.97575658 | J7: 70.20601748 | K7: 70.33013847 | L7: 68.30447405 | M7: 68.07231777 | N7: 70.33320314 | O7: 69.18461021 | P7: 68.19018109 | Q7: 68.68701937 | R7: 65.30525463 | S7: 69.60697872 | T7: 70.76637716 | U7: 71.07513546 | V7: 70.35200043 | W7: 69.06305315 | X7: 67.73562968 | Y7: 68.83134199 | Z7: 70.30850558 | AA7: 68.30681473 | AB7: 67.65811513 | AC7: 68.59882533 | AD7: 67.33195952 | AE7: 71.48057908 | AF7: 72.85092931 | AG7: 75.60240409 | AH7: 75.36048272 | AI7: 74.81594836 | AJ7: 74.58906516 | AK7: 74.99361296 | AL7: 76.95589986 | AM7: 77.18728781 | AN7: 75.92527101 | AO7: 75.03307946 | AP7: 72.40817333 | AQ7: 77.45188896 | AR7: 79.48095797 | AS7: 81.39577892 | AT7: 80.55059258 | AU7: 79.23941187 | AV7: 78.11437932 | AW7: 78.28545604 | AX7: 81.3767785 | AY7: 83.17927622 | AZ7: 82.22953198 | BA7: 82.33722432 | BB7: 82.42419086 | BC7: 83.70394475 | BD7: 86.04979639 | BE7: 87.10791778 | BF7: 87.05410028 | BG7: 87.17952684 | BH7: 86.58269201 | BI7: 87.95255523 | BJ7: 89.18263994 | BK7: 91.41524691 | BL7: 92.42657804 | BM7: 92.02599741 | BN7: 88.26749422 | BO7: 89.41100242 | BP7: 94.07305952 | BQ7: 96.70318093 | BR7: 95.45732844 | BS7: 92.29137799 | BT7: 91.91114531 | BU7: 92.35569386 | BV7: 96.90343592 | BW7: 96.88523064 | BX7: 96.94813799 | BY7: 95.54955641 | BZ7: 93.80597818 | CA7: 96.5138608 | CB7: 101.4337771 | CC7: 106.2695899 | CD7: 108.2268573 | CE7: 106.4081002 | CF7: 102.932691 | CG7: 101.8567574 | CH7: 104.0046498 | CI7: 106.1347342 | CJ7: 107.7516948 | CK7: 108.0835029 | CL7: 104.8377734 | CM7: 106.1100844 | CN7: 109.3780113 | CO7: 113.2499546 | CP7: 115.7115446 | CQ7: 113.4381523 | CR7: 109.8064987 | CS7: 109.4478349 | CT7: 111.5155982 | CU7: 111.8098721 | CV7: 113.3312809 | CW7: 113.421709 | CX7: 111.1165104 | CY7: 112.1676058 | CZ7: 116.1063709 | DA7: 121.5994954 | DB7: 123.4851777 | DC7: 121.1922944 | DD7: 114.7988613 | DE7: 106.5301423 | DF7: 97.02239199 | DG7: 87.88543024 | DH7: 81.83308219 | DI7: 84.36868795 | DJ7: 88.33744528 | DK7: 87.27216429 | DL7: 88.25411079 | DM7: 94.63808645 | DN7: 103.3147966 | DO7: 108.9801118 | DP7: 110.7500914 | DQ7: 109.9341234 | DR7: 111.7931758 | DS7: 110.9414104 | DT7: 108.683631 | DU7: 110.2215211 | DV7: 110.3162057 | DW7: 113.5334719 | DX7: 118.6630166 | DY7: 123.5221336 | DZ7: 122.8355777 | EA7: 119.1752197 | EB7: 115.6605347 | EC7: 111.541052 | ED7: 112.4419729 | EE7: 115.629414 | EF7: 116.326351 | EG7: 123.900029 | EH7: 123.4040242 | EI7: 122.6162181 | EJ7: 124.0985497 | EK7: 128.0466722 | EL7: 131.8878325 | EM7: 132.7845307 | EN7: 128.1137553 | EO7: 122.2137106 | EP7: 118.9243582 | EQ7: 116.7018088 | ER7: 117.2755015 | ES7: 119.7441172 | ET7: 124.7296348 | EU7: 125.8797194 | EV7: 127.2489249 | EW7: 129.5241177 | EX7: 131.6735069 | EY7: 133.9204143 | EZ7: 128.7382695 | FA7: 123.1440899 | FB7: 120.0839971 | FC7: 122.1647182 | FD7: 122.0964036
D8: сезонность
D9: индексы сезонности | E9: 1 | F9: 1 | G9: 1 | H9: 1 | I9: 1 | J9: 1 | K9: 1 | L9: 1 | M9: 1 | N9: 1 | O9: 1 | P9: 1 | Q9: 1.003074648 | R9: 0.9917379883 | S9: 1.015007299 | T9: 0.9962916528 | U9: 0.9974663252 | V9: 0.9972879199 | W9: 0.9982185571 | X9: 0.999551524 | Y9: 1.005192327 | Z9: 1.001830456 | AA9: 0.9927373449 | AB9: 1.001533163 | AC9: 1.006864136 | AD9: 0.9876240838 | AE9: 1.025748878 | AF9: 0.9926614499 | AG9: 0.9994991798 | AH9: 0.9917537273 | AI9: 0.9964969882 | AJ9: 0.9998442176 | AK9: 1.006520405 | AL9: 1.005130287 | AM9: 0.9900500903 | AN9: 0.9980270037 | AO9: 1.006895189 | AP9: 0.9840853464 | AQ9: 1.040295807 | AR9: 0.9897574866 | AS9: 0.9987177073 | AT9: 0.986499759 | AU9: 0.9945446621 | AV9: 0.9998041957 | AW9: 1.009011987 | AX9: 1.011019451 | AY9: 0.9888840552 | AZ9: 0.9927785724 | BA9: 1.007777256 | BB9: 0.9842204639 | BC9: 1.042547581 | BD9: 0.992013644 | BE9: 0.9969528625 | BF9: 0.9842608137 | BG9: 0.9944005935 | BH9: 0.9985239947 | BI9: 1.012141976 | BJ9: 1.011400352 | BK9: 0.9905834649 | BL9: 0.9911483517 | BM9: 1.005125567 | BN9: 0.9780641267 | BO9: 1.049833769 | BP9: 0.998897069 | BQ9: 0.9951565635 | BR9: 0.9779067216 | BS9: 0.9899694035 | BT9: 1.002170012 | BU9: 1.014233404 | BV9: 1.018222592 | BW9: 0.9849175396 | BX9: 0.9901396443 | BY9: 1.002611885 | BZ9: 0.9770262687 | CA9: 1.056880362 | CB9: 1.00344051 | CC9: 0.9959025162 | CD9: 0.9741492188 | CE9: 0.9839260844 | CF9: 0.9984857235 | CG9: 1.017063698 | CH9: 1.023513409 | CI9: 0.9858957608 | CJ9: 0.9896261036 | CK9: 1.000719989 | CL9: 0.9716450485 | CM9: 1.062480219 | CN9: 1.007218267 | CO9: 0.9974234981 | CP9: 0.972659424 | CQ9: 0.9774586465 | CR9: 0.995277054 | CS9: 1.020970108 | CT9: 1.027625605 | CU9: 0.9843401971 | CV9: 0.9909253355 | CW9: 0.9990887065 | CX9: 0.9681794586 | CY9: 1.066498158 | CZ9: 1.011711779 | DA9: 1.00018571 | DB9: 0.9689276962 | DC9: 0.9716391874 | DD9: 0.9886933344 | DE9: 1.016818658 | DF9: 1.024739502 | DG9: 0.9843527471 | DH9: 0.9965308355 | DI9: 1.015439773 | DJ9: 0.9735622273 | DK9: 1.058470839 | DL9: 1.01372603 | DM9: 1.009120833 | DN9: 0.9737388105 | DO9: 0.9685266163 | DP9: 0.9828538244 | DQ9: 1.01202087 | DR9: 1.027466592 | DS9: 0.98127284 | DT9: 0.9939604968 | DU9: 1.020168524 | DV9: 0.9725577099 | DW9: 1.062625371 | DX9: 1.016937871 | DY9: 1.009403738 | DZ9: 0.9671994868 | EA9: 0.9635606228 | EB9: 0.9820009897 | EC9: 1.011015648 | ED9: 1.034145393 | EE9: 0.9854240149 | EF9: 0.9916043792 | EG9: 1.028207701 | EH9: 0.9645569895 | EI9: 1.060486482 | EJ9: 1.019323806 | EK9: 1.012778494 | EL9: 0.9677097207 | EM9: 0.9604565936 | EN9: 0.9749439747 | EO9: 1.007967019 | EP9: 1.036909786 | EQ9: 0.9873120836 | ER9: 0.9955289796 | ES9: 1.031445488 | ET9: 0.9680597285 | EU9: 1.056402866 | EV9: 1.01881052 | EW9: 1.013740905 | EX9: 0.9677519499 | EY9: 0.9605697433 | EZ9: 0.9665287604 | FA9: 1.005642029 | FB9: 1.039701473 | FC9: 0.9940667222 | FD9: 0.9942635461
D10: номера прогнозных периодов
D11: прогнозный тренд
D12: прогноз скорректированный на сезонность | E12: 118.2931797 | F12: 117.548414 | G12: 118.411618 | H12: 123.342872 | I12: 127.664413 | J12: 122.1987399 | K12: 122.3607571 | L12: 127.0795928 | M12: 119.4043184 | N12: 130.4473462 | O12: 125.9465712 | P12: 125.4603812 | Q12: 119.9029439 | R12: 119.1462312 | S12: 120.0193475 | T12: 125.0156627 | U12: 129.3938584 | V12: 123.8522762 | W12: 124.0146208 | X12: 128.7953052 | Y12: 121.0145946 | Z12: 132.2045728 | AA12: 127.6412664 | AB12: 127.1466436 | AC12: 121.512708 | AD12: 120.7440484 | AE12: 121.627077 | AF12: 126.6884535 | AG12: 131.1233038 | AH12: 125.5058125 | AI12: 125.6684844 | AJ12: 130.5110175 | AK12: 122.6248707 | AL12: 133.9617994 | AM12: 129.3359617 | AN12: 128.8329061 | AO12: 123.1224722 | AP12: 122.3418656 | AQ12: 123.2348065 | AR12: 128.3612442 | AS12: 132.8527492 | AT12: 127.1593488 | AU12: 127.3223481 | AV12: 132.2267299 | AW12: 124.2351468 | AX12: 135.719026 | AY12: 131.030657 | AZ12: 130.5191685 | BA12: 124.7322363 | BB12: 123.9396829 | BC12: 124.842536 | BD12: 130.0340349 | BE12: 134.5821946 | BF12: 128.8128851 | BG12: 128.9762118 | BH12: 133.9424422 | BI12: 125.8454229 | BJ12: 137.4762525 | BK12: 132.7253522 | BL12: 132.205431 | BM12: 126.3420004 | BN12: 125.5375001 | BO12: 126.4502655 | BP12: 131.7068256 | BQ12: 136.31164 | BR12: 130.4664214 | BS12: 130.6300755 | BT12: 135.6581546 | BU12: 127.455699 | BV12: 139.2334791 | BW12: 134.4200475 | BX12: 133.8916934 | BY12: 127.9517646 | BZ12: 127.1353173 | CA12: 128.057995 | CB12: 133.3796163 | CC12: 138.0410854 | CD12: 132.1199576 | CE12: 132.2839392 | CF12: 137.3738669 | CG12: 129.0659751 | CH12: 140.9907057 | CI12: 136.1147428 | CJ12: 135.5779558 | CK12: 129.5615287 | CL12: 128.7331345 | CM12: 129.6657244 | CN12: 135.0524071 | CO12: 139.7705308 | CP12: 133.7734939 | CQ12: 133.9378029 | CR12: 139.0895792 | CS12: 130.6762512 | CT12: 142.7479323 | CU12: 137.809438 | CV12: 137.2642183 | CW12: 131.1712929 | CX12: 130.3309518 | CY12: 131.2734539 | CZ12: 136.7251978 | DA12: 141.4999762 | DB12: 135.4270302 | DC12: 135.5916666 | DD12: 140.8052916 | DE12: 132.2865273 | DF12: 144.5051589 | DG12: 139.5041333 | DH12: 138.9504807 | DI12: 132.781057 | DJ12: 131.928769 | DK12: 132.8811834 | DL12: 138.3979885 | DM12: 143.2294216 | DN12: 137.0805665 | DO12: 137.2455303 | DP12: 142.5210039 | DQ12: 133.8968034 | DR12: 146.2623855 | DS12: 141.1988286 | DT12: 140.6367432
D13: дисперсия
D14: дисперсия - сигма
D15: дисперсия - 3 сигмы
D16: верхняя граница прогноза
D17: нижняя граница прогноза
D18: значения модели | E18: 67.575 | F18: 67.575 | G18: 64.82892 | H18: 72.3061552 | I18: 70.62678291 | J18: 73.77808739 | K18: 69.15069236 | L18: 70.21837024 | M18: 66.66158886 | N18: 67.55801572 | O18: 72.03905103 | P18: 68.60690543 | Q18: 67.27909684 | R18: 68.90227314 | S18: 62.64289359 | T18: 72.51588578 | U18: 72.27567732 | V18: 71.62400214 | W18: 69.88326574 | X18: 67.93814838 | Y18: 66.44870995 | Z18: 69.45052789 | AA18: 71.61407363 | AB18: 66.96657565 | AC18: 67.07671273 | AD18: 68.62231042 | AE18: 67.43454766 | AF18: 74.34386384 | AG18: 74.38626091 | AH18: 77.93649527 | AI18: 75.54134008 | AJ18: 74.41006879 | AK18: 74.71902144 | AL18: 75.40382137 | AM18: 78.0095158 | AN18: 77.81638413 | AO18: 75.53258371 | AP18: 73.22027925 | AQ18: 71.9349411 | AR18: 80.43641486 | AS18: 81.77907133 | AT18: 82.70775212 | AU18: 79.99317639 | AV18: 78.1230524 | AW18: 77.49554474 | AX18: 78.59932364 | AY18: 82.99824964 | AZ18: 84.9444671 | BA18: 82.4207751 | BB18: 81.03819208 | BC18: 85.82031358 | BD18: 83.87415096 | BE18: 88.02109967 | BF18: 87.17824475 | BG18: 86.78766532 | BH18: 87.30469372 | BI18: 86.90991273 | BJ18: 89.9389182 | BK18: 89.36340036 | BL18: 92.76363098 | BM18: 94.36853584 | BN18: 90.49737053 | BO18: 88.87212123 | BP18: 89.00479288 | BQ18: 97.56656518 | BR18: 97.99853882 | BS18: 94.50100524 | BT18: 89.54141986 | BU18: 92.18937223 | BV18: 93.60084613 | BW18: 99.63253729 | BX18: 96.74193587 | BY18: 97.6405105 | BZ18: 92.39731064 | CA18: 96.78955142 | CB18: 98.24951337 | CC18: 105.2263992 | CD18: 108.546856 | CE18: 109.6278175 | CF18: 105.684281 | CG18: 101.3846291 | CH18: 102.2314204 | CI18: 103.8418063 | CJ18: 107.058124 | CK18: 109.729023 | CL18: 106.1902929 | CM18: 108.1843222 | CN18: 106.9996373 | CO18: 111.637574 | CP18: 113.8695538 | CQ18: 116.505785 | CR18: 111.9891064 | CS18: 108.4650983 | CT18: 111.08055 | CU18: 111.3923948 | CV18: 111.1739699 | CW18: 114.7368567 | CX18: 110.5330355 | CY18: 116.1713119 | CZ18: 113.4662886 | DA18: 119.0469705 | DB18: 123.1811089 | DC18: 123.1622801 | DD18: 119.2953626 | DE18: 111.7124547 | DF18: 101.5694712 | DG18: 86.50180864 | DH18: 78.03237211 | DI18: 75.09501657 | DJ18: 82.3564997 | DK18: 97.74601223 | DL18: 88.1026171 | DM18: 89.01830833 | DN18: 96.7908392 | DO18: 108.1507362 | DP18: 113.8093856 | DQ18: 115.2993392 | DR18: 112.5264167 | DS18: 111.4834104 | DT18: 110.1689479 | DU18: 108.4485818 | DV18: 108.1384546 | DW18: 117.0273466 | DX18: 117.7509435 | DY18: 124.415792 | DZ18: 124.9648467 | EA18: 119.3698614 | EB18: 114.3349943 | EC18: 113.6293624 | ED18: 110.5238534 | EE18: 110.2640173 | EF18: 117.4509881 | EG18: 119.7585487 | EH18: 126.5996757 | EI18: 132.043521 | EJ18: 124.2265746 | EK18: 126.3699477 | EL18: 127.1132196 | EM18: 130.6937256 | EN18: 131.8351724 | EO18: 126.0438692 | EP18: 120.7933861 | EQ18: 113.5318248 | ER18: 113.2225043 | ES18: 120.5371168 | ET18: 117.3962054 | EU18: 136.9207036 | EV18: 130.1432924 | EW18: 130.348204 | EX18: 127.3846628 | EY18: 128.5237245 | EZ18: 132.735001 | FA18: 126.033906 | FB18: 122.2813588 | FC18: 115.1135123 | FD18: 122.5805407
D19: ошибка модели
D20: среднеквадратичное отклонение

Sheet ХольтВинтерс
E3: 67.575 | F3: 65.668 | G3: 70.869 | H3: 69.303 | I3: 72.313 | J3: 69.313 | K3: 70.625 | L3: 67.826 | M3: 68.425 | N3: 71.027 | O3: 68.471 | P3: 68.086 | Q3: 69.039 | R3: 64.406 | S3: 71.348 | T3: 70.329 | U3: 70.775 | V3: 70.034 | W3: 68.858 | X3: 67.685 | Y3: 69.427 | Z3: 70.523 | AA3: 67.48 | AB3: 67.831 | AC3: 69.243 | AD3: 66.314 | AE3: 73.833 | AF3: 72.14 | AG3: 75.667 | AH3: 74.461 | AI3: 74.468 | AJ3: 74.592 | AK3: 75.549 | AL3: 77.52 | AM3: 76.281 | AN3: 75.598 | AO3: 75.552 | AP3: 71.085 | AQ3: 81.324 | AR3: 78.513 | AS3: 81.249 | AT3: 79.181 | AU3: 78.704 | AV3: 78.097 | AW3: 79.121 | AX3: 82.593 | AY3: 82.19 | AZ3: 81.348 | BA3: 83.026 | BB3: 81.131 | BC3: 87.391 | BD3: 85.492 | BE3: 86.74 | BF3: 85.554 | BG3: 86.683 | BH3: 86.381 | BI3: 89.204 | BJ3: 90.222 | BK3: 90.658 | BL3: 91.508 | BM3: 92.335 | BN3: 85.969 | BO3: 94.301 | BP3: 94.401 | BQ3: 96.119 | BR3: 92.944 | BS3: 91.093 | BT3: 92.334 | BU3: 93.799 | BV3: 99.11 | BW3: 95.058 | BX3: 95.927 | BY3: 95.639 | BZ3: 91.586 | CA3: 102.457 | CB3: 102.09 | CC3: 105.887 | CD3: 105.158 | CE3: 104.269 | CF3: 102.524 | CG3: 103.787 | CH3: 106.817 | CI3: 104.707 | CJ3: 106.597 | CK3: 108.025 | CL3: 101.489 | CM3: 113.136 | CN3: 110.443 | CO3: 113.073 | CP3: 112.433 | CQ3: 110.392 | CR3: 109.053 | CS3: 112.028 | CT3: 114.902 | CU3: 109.943 | CV3: 112.401 | CW3: 113.195 | CX3: 107.324 | CY3: 119.927 | CZ3: 117.814 | DA3: 121.846 | DB3: 119.341 | DC3: 117.285 | DD3: 112.997 | DE3: 108.027 | DF3: 99.236 | DG3: 86.511 | DH3: 81.855 | DI3: 86.591 | DJ3: 86.319 | DK3: 91.908 | DL3: 89.584 | DM3: 96.065 | DN3: 100.933 | DO3: 105.324 | DP3: 108.42 | DQ3: 110.904 | DR3: 115.067 | DS3: 108.636 | DT3: 107.841 | DU3: 112.792 | DV3: 107.215 | DW3: 120.958 | DX3: 120.927 | DY3: 124.707 | DZ3: 118.271 | EA3: 114.438 | EB3: 113.513 | EC3: 112.695 | ED3: 116.782 | EE3: 114.264 | EF3: 115.167 | EG3: 128.059 | EH3: 118.372 | EI3: 129.858 | EJ3: 126.694 | EK3: 129.971 | EL3: 127.674 | EM3: 127.259 | EN3: 124.301 | EO3: 122.939 | EP3: 123.533 | EQ3: 115.368 | ER3: 117.058 | ES3: 123.768 | ET3: 121.037 | EU3: 132.637 | EV3: 129.599 | EW3: 131.387 | EX3: 127.431 | EY3: 128.65 | EZ3: 123.707 | FA3: 123.648 | FB3: 125.075 | FC3: 121.99 | FD3: 121.293
D5: данные | E5: 67.575 | F5: 65.668 | G5: 70.869 | H5: 69.303 | I5: 72.313 | J5: 69.313 | K5: 70.625 | L5: 67.826 | M5: 68.425 | N5: 71.027 | O5: 68.471 | P5: 68.086 | Q5: 69.039 | R5: 64.406 | S5: 71.348 | T5: 70.329 | U5: 70.775 | V5: 70.034 | W5: 68.858 | X5: 67.685 | Y5: 69.427 | Z5: 70.523 | AA5: 67.48 | AB5: 67.831 | AC5: 69.243 | AD5: 66.314 | AE5: 73.833 | AF5: 72.14 | AG5: 75.667 | AH5: 74.461 | AI5: 74.468 | AJ5: 74.592 | AK5: 75.549 | AL5: 77.52 | AM5: 76.281 | AN5: 75.598 | AO5: 75.552 | AP5: 71.085 | AQ5: 81.324 | AR5: 78.513 | AS5: 81.249 | AT5: 79.181 | AU5: 78.704 | AV5: 78.097 | AW5: 79.121 | AX5: 82.593 | AY5: 82.19 | AZ5: 81.348 | BA5: 83.026 | BB5: 81.131 | BC5: 87.391 | BD5: 85.492 | BE5: 86.74 | BF5: 85.554 | BG5: 86.683 | BH5: 86.381 | BI5: 89.204 | BJ5: 90.222 | BK5: 90.658 | BL5: 91.508 | BM5: 92.335 | BN5: 85.969 | BO5: 94.301 | BP5: 94.401 | BQ5: 96.119 | BR5: 92.944 | BS5: 91.093 | BT5: 92.334 | BU5: 93.799 | BV5: 99.11 | BW5: 95.058 | BX5: 95.927 | BY5: 95.639 | BZ5: 91.586 | CA5: 102.457 | CB5: 102.09 | CC5: 105.887 | CD5: 105.158 | CE5: 104.269 | CF5: 102.524 | CG5: 103.787 | CH5: 106.817 | CI5: 104.707 | CJ5: 106.597 | CK5: 108.025 | CL5: 101.489 | CM5: 113.136 | CN5: 110.443 | CO5: 113.073 | CP5: 112.433 | CQ5: 110.392 | CR5: 109.053 | CS5: 112.028 | CT5: 114.902 | CU5: 109.943 | CV5: 112.401 | CW5: 113.195 | CX5: 107.324 | CY5: 119.927 | CZ5: 117.814 | DA5: 121.846 | DB5: 119.341 | DC5: 117.285 | DD5: 112.997 | DE5: 108.027 | DF5: 99.236 | DG5: 86.511 | DH5: 81.855 | DI5: 86.591 | DJ5: 86.319 | DK5: 91.908 | DL5: 89.584 | DM5: 96.065 | DN5: 100.933 | DO5: 105.324 | DP5: 108.42 | DQ5: 110.904 | DR5: 115.067 | DS5: 108.636 | DT5: 107.841 | DU5: 112.792 | DV5: 107.215 | DW5: 120.958 | DX5: 120.927 | DY5: 124.707 | DZ5: 118.271 | EA5: 114.438 | EB5: 113.513 | EC5: 112.695 | ED5: 116.782 | EE5: 114.264 | EF5: 115.167 | EG5: 128.059 | EH5: 118.372 | EI5: 129.858 | EJ5: 126.694 | EK5: 129.971 | EL5: 127.674 | EM5: 127.259 | EN5: 124.301 | EO5: 122.939 | EP5: 123.533 | EQ5: 115.368 | ER5: 117.058 | ES5: 123.768 | ET5: 121.037 | EU5: 132.637 | EV5: 129.599 | EW5: 131.387 | EX5: 127.431 | EY5: 128.65 | EZ5: 123.707 | FA5: 123.648 | FB5: 125.075 | FC5: 121.99 | FD5: 121.293
D6: данные с прогнозом | E6: 67.575 | F6: 65.668 | G6: 70.869 | H6: 69.303 | I6: 72.313 | J6: 69.313 | K6: 70.625 | L6: 67.826 | M6: 68.425 | N6: 71.027 | O6: 68.471 | P6: 68.086 | Q6: 69.039 | R6: 64.406 | S6: 71.348 | T6: 70.329 | U6: 70.775 | V6: 70.034 | W6: 68.858 | X6: 67.685 | Y6: 69.427 | Z6: 70.523 | AA6: 67.48 | AB6: 67.831 | AC6: 69.243 | AD6: 66.314 | AE6: 73.833 | AF6: 72.14 | AG6: 75.667 | AH6: 74.461 | AI6: 74.468 | AJ6: 74.592 | AK6: 75.549 | AL6: 77.52 | AM6: 76.281 | AN6: 75.598 | AO6: 75.552 | AP6: 71.085 | AQ6: 81.324 | AR6: 78.513 | AS6: 81.249 | AT6: 79.181 | AU6: 78.704 | AV6: 78.097 | AW6: 79.121 | AX6: 82.593 | AY6: 82.19 | AZ6: 81.348 | BA6: 83.026 | BB6: 81.131 | BC6: 87.391 | BD6: 85.492 | BE6: 86.74 | BF6: 85.554 | BG6: 86.683 | BH6: 86.381 | BI6: 89.204 | BJ6: 90.222 | BK6: 90.658 | BL6: 91.508 | BM6: 92.335 | BN6: 85.969 | BO6: 94.301 | BP6: 94.401 | BQ6: 96.119 | BR6: 92.944 | BS6: 91.093 | BT6: 92.334 | BU6: 93.799 | BV6: 99.11 | BW6: 95.058 | BX6: 95.927 | BY6: 95.639 | BZ6: 91.586 | CA6: 102.457 | CB6: 102.09 | CC6: 105.887 | CD6: 105.158 | CE6: 104.269 | CF6: 102.524 | CG6: 103.787 | CH6: 106.817 | CI6: 104.707 | CJ6: 106.597 | CK6: 108.025 | CL6: 101.489 | CM6: 113.136 | CN6: 110.443 | CO6: 113.073 | CP6: 112.433 | CQ6: 110.392 | CR6: 109.053 | CS6: 112.028 | CT6: 114.902 | CU6: 109.943 | CV6: 112.401 | CW6: 113.195 | CX6: 107.324 | CY6: 119.927 | CZ6: 117.814 | DA6: 121.846 | DB6: 119.341 | DC6: 117.285 | DD6: 112.997 | DE6: 108.027 | DF6: 99.236 | DG6: 86.511 | DH6: 81.855 | DI6: 86.591 | DJ6: 86.319 | DK6: 91.908 | DL6: 89.584 | DM6: 96.065 | DN6: 100.933 | DO6: 105.324 | DP6: 108.42 | DQ6: 110.904 | DR6: 115.067 | DS6: 108.636 | DT6: 107.841 | DU6: 112.792 | DV6: 107.215 | DW6: 120.958 | DX6: 120.927 | DY6: 124.707 | DZ6: 118.271 | EA6: 114.438 | EB6: 113.513 | EC6: 112.695 | ED6: 116.782 | EE6: 114.264 | EF6: 115.167 | EG6: 128.059 | EH6: 118.372 | EI6: 129.858 | EJ6: 126.694 | EK6: 129.971 | EL6: 127.674 | EM6: 127.259 | EN6: 124.301 | EO6: 122.939 | EP6: 123.533 | EQ6: 115.368 | ER6: 117.058 | ES6: 123.768 | ET6: 121.037 | EU6: 132.637 | EV6: 129.599 | EW6: 131.387 | EX6: 127.431 | EY6: 128.65 | EZ6: 123.707 | FA6: 123.648 | FB6: 125.075 | FC6: 121.99 | FD6: 121.293 | FE6: 118.2931797 | FF6: 117.548414 | FG6: 118.411618 | FH6: 123.342872 | FI6: 127.664413 | FJ6: 122.1987399 | FK6: 122.3607571 | FL6: 127.0795928 | FM6: 119.4043184 | FN6: 130.4473462 | FO6: 125.9465712 | FP6: 125.4603812 | FQ6: 119.9029439 | FR6: 119.1462312 | FS6: 120.0193475 | FT6: 125.0156627 | FU6: 129.3938584 | FV6: 123.8522762 | FW6: 124.0146208 | FX6: 128.7953052 | FY6: 121.0145946 | FZ6: 132.2045728 | GA6: 127.6412664 | GB6: 127.1466436 | GC6: 121.512708 | GD6: 120.7440484 | GE6: 121.627077 | GF6: 126.6884535 | GG6: 131.1233038 | GH6: 125.5058125 | GI6: 125.6684844 | GJ6: 130.5110175 | GK6: 122.6248707 | GL6: 133.9617994 | GM6: 129.3359617 | GN6: 128.8329061 | GO6: 123.1224722 | GP6: 122.3418656 | GQ6: 123.2348065 | GR6: 128.3612442 | GS6: 132.8527492 | GT6: 127.1593488 | GU6: 127.3223481 | GV6: 132.2267299 | GW6: 124.2351468 | GX6: 135.719026 | GY6: 131.030657 | GZ6: 130.5191685 | HA6: 124.7322363 | HB6: 123.9396829 | HC6: 124.842536 | HD6: 130.0340349 | HE6: 134.5821946 | HF6: 128.8128851 | HG6: 128.9762118 | HH6: 133.9424422 | HI6: 125.8454229 | HJ6: 137.4762525 | HK6: 132.7253522 | HL6: 132.205431 | HM6: 126.3420004 | HN6: 125.5375001 | HO6: 126.4502655 | HP6: 131.7068256 | HQ6: 136.31164 | HR6: 130.4664214 | HS6: 130.6300755 | HT6: 135.6581546 | HU6: 127.455699 | HV6: 139.2334791 | HW6: 134.4200475 | HX6: 133.8916934 | HY6: 127.9517646 | HZ6: 127.1353173 | IA6: 128.057995 | IB6: 133.3796163 | IC6: 138.0410854 | ID6: 132.1199576 | IE6: 132.2839392 | IF6: 137.3738669 | IG6: 129.0659751 | IH6: 140.9907057 | II6: 136.1147428 | IJ6: 135.5779558 | IK6: 129.5615287 | IL6: 128.7331345 | IM6: 129.6657244 | IN6: 135.0524071 | IO6: 139.7705308 | IP6: 133.7734939 | IQ6: 133.9378029 | IR6: 139.0895792 | IS6: 130.6762512 | IT6: 142.7479323 | IU6: 137.809438 | IV6: 137.2642183 | IW6: 131.1712929 | IX6: 130.3309518 | IY6: 131.2734539 | IZ6: 136.7251978 | JA6: 141.4999762 | JB6: 135.4270302 | JC6: 135.5916666 | JD6: 140.8052916 | JE6: 132.2865273 | JF6: 144.5051589 | JG6: 139.5041333 | JH6: 138.9504807 | JI6: 132.781057 | JJ6: 131.928769 | JK6: 132.8811834 | JL6: 138.3979885 | JM6: 143.2294216 | JN6: 137.0805665 | JO6: 137.2455303 | JP6: 142.5210039 | JQ6: 133.8968034 | JR6: 146.2623855 | JS6: 141.1988286 | JT6: 140.6367432 | JU6: 0.9998896738 | JV6: =SUM(FE6:JT6) -> 15681.09242 | JW6: =SUM(FE6:JT6)/SUM(AO6:FD6) -> 1.246394802 | JX6: 0.8 | JY6: 0.8 | JZ6: 0.6
